Cogmind - Beta 11.1 @@@ ROGUE MODE // 2022.06.07 @ 18:56:42 Player: Savant Result: Escaped! Performance ------------- Evolutions (9) 4500 Regions Visited (36) 7200 Robots Destroyed (279) 1395 Value Destroyed (11021) 11021 Prototype IDs (131) 2620 Alien Tech Used (11) 2200 Bonus (9967) 9967 TOTAL SCORE: 38903 Bonus ------- High Alert Combat Kills 618 Follower Combat Kills 2765 Network Hubs Disabled 200 Met Data Miner 300 Met Imprinter 300 MAIN.C Attacked Warlord 500 Warlord Defense Kills 1270 Built Enhanced Grunts 300 A7 Reached Mainframe 300 Scanned by Researcher 500 Win 3000 Friendly Fire -86 Cogmind --------- Core Integrity 764/1600 Matter 279/300 Energy 356/590 System Corruption 0% Temperature Cool (8) Movement Hovering (138) Ox1 Location To Epsilon Eridani Parts ------- > --- POWER (2) -------- Graviton Reactor Improved Quantum Reactor > --- PROPULSION (7) --- Improved Linear Gravjet Combat Linear Gravjet Combat Linear Gravjet Combat Linear Gravjet > --- UTILITY (12) ----- Advanced Coolant Injector High-capacity Storage Unit Experimental Signal Interpreter Advanced Melee Analysis Suite Advanced Melee Analysis Suite Microactuators Advanced Transmission Jammer Experimental ECM Suite Advanced Force Field > --- WEAPON (4) ------- Enhanced Force Lance CR-A16's Behemoth Slayer > --- INVENTORY (22) --- Centrium Heavy Treads Biometal Heavy Treads Biometal Heavy Treads Centrium Wheel Experimental Actuator Array Advanced Focal Shield Experimental EM Disruption Field AEGIS Remote Shield Antimissile System Navigation Efficiency Matrix Vortex Rifle (35) Vortex Rifle (20) Enhanced Nova Cannon Enhanced Nova Cannon Z-bomb Delivery System Advanced Remote Datajack Molecular Deconstructor Peak State ------------ > --- POWER ------------ Vortex Chain Reactor > --- PROPULSION ------- Cooled Linear Gravjet Combat Linear Gravjet Combat Linear Gravjet Combat Linear Gravjet Combat Linear Gravjet Combat Linear Gravjet Combat Linear Gravjet > --- UTILITY ---------- Coolant Network High-capacity Storage Unit Long-range Sensor Array Experimental Signal Interpreter Experimental ECM Suite Advanced Hacking Suite Experimental Hacking Suite Experimental System Shield Ghost Barrier Microwarp Drive > --- WEAPON ----------- Enhanced Nova Cannon Thunder Hammer Nanosword CR-A16's Behemoth Slayer > --- INVENTORY -------- Mini Fusion Reactor Particle Reactor Advanced Heavy Treads Centrium Wheel Combat Linear Gravjet Advanced Power Amplifier Improved Melee Analysis Suite Experimental Actuator Array Advanced Transmission Jammer Centrium Medium Armor Plating Experimental EM Disruption Field AEGIS Remote Shield Transdimensional Reconstructor High-powered Transdimensional Reconstructor Navigation Efficiency Matrix Vortex Rifle Vortex Rifle Enhanced Nova Cannon Z-bomb Delivery System Molecular Deconstructor [Rating: 239] Favorites ----------- Power Mini Fusion Reactor Engine Backup Power III Power Core Micro Fission Core Reactor Mini Fusion Reactor Propulsion Combat Linear Gravjet Treads Light Treads Leg Aluminum Leg Wheel Wheel Hover Unit Combat Linear Gravjet Flight Unit Improved VTOL Module Utility Advanced Hacking Suite Device Long-range Sensor Array Storage High-capacity Storage Unit Processor Experimental Signal Interpreter Hackware Advanced Hacking Suite Protection Centrium Medium Armor Plating Artifact Microwarp Drive Weapon Thunder Hammer Energy Gun Improved EM Shotgun Energy Cannon Enhanced Nova Cannon Ballistic Gun Shotgun Ballistic Cannon Compact Mass Driver Launcher Mini Grenade Launcher Special Weapon RU-N14's Throwing Claymores v3 Impact Weapon Thunder Hammer Slashing Weapon Nanosword Piercing Weapon CR-A16's Behemoth Slayer Special Melee Weapon Datajack Build | -11 -10 -10 -9 -9 -9 -8 -8 -7 -7 -7 -7 -6 -6 -6 -6 -6 -5 -5 -5 -5 -5 -5 -4 -4 -4 -4 -4 -4 -3 -3 -3 -2 -2 -2 -1 -1 ------- Run | Scr Mat Min Mat Min Exi Min Mat Fac Low Low Zio Pro Fac Low Low Dat Pro Fac Ext Cet Arc Hub Fac Was Fac Upp Upp War Pro Res Tes Res Qua Sec Acc Com Slots Evolved 18 | . . . 2 . . . 2 2 . . . . 2 . . . . 2 . . . . 2 . . . . . . 2 . 2 . . 2 . Power 1 | . . . . . . . . . . . . . . . . . . . . . . . 1 . . . . . . . . . . . . . Propulsion 5 | . . . 1 . . . 1 . . . . . . . . . . . . . . . 1 . . . . . . . . 2 . . . . Utility 10 | . . . 1 . . . 1 2 . . . . 2 . . . . 2 . . . . . . . . . . . 2 . . . . . . Weapon 2 | . . . . . . . . . . . . . . . . . . . . . . . . . . . . . . . . . . . 2 . Parts Attached 609 | 8 16 10 44 2 4 . 41 21 . 2 4 1 12 . 4 . . 35 10 7 . 4 46 2 56 6 2 16 4 26 36 33 23 65 51 18 Power 41 | 3 1 1 5 . . . 3 2 . . . . . . . . . 1 . . . . 5 1 5 . . 1 . 3 3 1 1 1 2 2 Engine 17 | 3 1 1 5 . . . 3 1 . . . . . . . . . . . . . . 2 . 1 . . . . . . . . . . . Core 4 | . . . . . . . . 1 . . . . . . . . . 1 . . . . 1 . 1 . . . . . . . . . . . Reactor 20 | . . . . . . . . . . . . . . . . . . . . . . . 2 1 3 . . 1 . 3 3 1 1 1 2 2 Propulsion 105 | 2 8 3 13 . . . 9 4 . . . . . . . . . 7 . . . . 15 1 6 . . 2 . 3 4 10 2 3 9 4 Treads 18 | 1 4 2 6 . . . 5 . . . . . . . . . . . . . . . . . . . . . . . . . . . . . Leg 1 | . . . 1 . . . . . . . . . . . . . . . . . . . . . . . . . . . . . . . . . Wheel 22 | 1 4 1 6 . . . 4 . . . . . . . . . . . . . . . 6 . . . . . . . . . . . . . Hover 50 | . . . . . . . . . . . . . . . . . . 1 . . . . 6 1 6 . . 2 . 3 4 10 1 3 9 4 Flight 14 | . . . . . . . . 4 . . . . . . . . . 6 . . . . 3 . . . . . . . . . 1 . . . Utility 284 | 1 3 1 5 . . . 13 10 . . 1 1 9 . . . . 24 5 2 . . 15 . 33 4 1 4 4 18 16 15 16 42 35 6 Device 185 | . 1 1 2 . . . 7 4 . . . . 3 . . . . 20 4 . . . 7 . 16 3 . 3 4 11 9 13 12 30 29 6 Storage 14 | 1 1 . . . . . . 1 . . . . 1 . . . . . 1 1 . . 1 . 3 . . 1 . 1 . . . 2 . . Processor 14 | . . . 1 . . . 1 1 . . . . 1 . . . . . . . . . 2 . 3 . . . . . . . . 1 4 . Hackware 33 | . . . 1 . . . 1 4 . . 1 1 4 . . . . 4 . . . . 3 . 7 . 1 . . 3 3 . . . . . Protection 34 | . 1 . 1 . . . 4 . . . . . . . . . . . . 1 . . 2 . 4 1 . . . 3 4 2 3 8 . . Artifact 4 | . . . . . . . . . . . . . . . . . . . . . . . . . . . . . . . . . 1 1 2 . Weapon 179 | 2 4 5 21 2 4 . 16 5 . 2 3 . 3 . 4 . . 3 5 5 . 4 11 . 12 2 1 9 . 2 13 7 4 19 5 6 Energy Gun 21 | 1 1 . 4 2 2 . 7 . . . . . . . . . . . . . . . . . . . . 2 . . . . . . . 2 Energy Cannon 38 | . . . 4 . . . 2 2 . . . . 1 . 2 . . 1 . . . 1 2 . 3 1 . . . . 6 2 1 6 1 3 Ballistic Gun 10 | 1 2 3 4 . . . . . . . . . . . . . . . . . . . . . . . . . . . . . . . . . Ballistic Cannon 1 | . . . . . . . . . . . . . . . . . . . . . . . . . . . . . . 1 . . . . . . Launcher 22 | . . 2 . . . . 2 . . 1 2 . 1 . 2 . . 1 1 3 . 2 1 . 2 . . . . . . . . 1 1 . Special Weapon 9 | . . . . . . . . . . . 1 . . . . . . . 1 2 . . . . . . . 3 . . . 1 . 1 . . Impact Weapon 35 | . 1 . 8 . 2 . . . . . . . . . . . . 1 1 . . 1 5 . 2 . . 3 . 1 3 2 1 2 2 . Slashing Weapon 14 | . . . . . . . . . . . . . 1 . . . . . . . . . . . . . . . . . 1 1 2 9 . . Piercing Weapon 25 | . . . . . . . 5 1 . . . . . . . . . . 2 . . . 3 . 5 1 1 1 . . 3 1 . . 1 1 Special Melee Weapon 4 | . . . 1 . . . . 2 . 1 . . . . . . . . . . . . . . . . . . . . . . . . . . Unidentified Prototypes 14 | . . . 2 . . . . . . . 1 . . . . . . . . 1 . . . . . . . 4 . . . . 2 3 . 1 Corrupted Parts 1 | . . . . . . . . . . . . . . . . . . . . . . . . . . . 1 . . . . . . . . . System Corruption 5 | . . . . . . . . . . . . . . . . . . . . . . . . . . . 5 . . . . . . . . . Parts Lost 61 | . . 4 8 . . . 8 . . . . . . . . . . . . 1 . 3 7 . 6 . . 1 . . . . 1 5 9 8 Power 11 | . . 1 2 . . . . . . . . . . . . . . . . . . 1 2 . 1 . . 1 . . . . . 1 2 . Propulsion 20 | . . 1 5 . . . 4 . . . . . . . . . . . . . . 1 3 . . . . . . . . . . . 1 5 Utility 24 | . . 1 1 . . . 3 . . . . . . . . . . . . 1 . . 2 . 5 . . . . . . . 1 3 4 3 Weapon 6 | . . 1 . . . . 1 . . . . . . . . . . . . . . 1 . . . . . . . . . . . 1 2 . Highest Loss Streak 6 | . . 3 2 . . . 4 . . . . . . . . . . . . 1 . 3 3 . 3 . . 1 . . . . 1 2 6 6 To Critical Strikes 1 | . . . . . . . . . . . . . . . . . . . . . . . . . . . . . . . . . . . 1 . Average Slot Usage (%) 95 | . 94 95 95 100 100 100 98 98 100 100 100 100 97 100 100 100 100 96 94 93 94 93 90 100 95 98 100 99 100 97 99 98 97 87 88 86 Engine 3 | . 14 13 10 11 11 11 9 1 . . . . . . . . . . . . . . 6 2 2 5 5 4 . . . . . . . . Core 1 | . . . . . . . . 5 7 7 7 7 6 6 6 6 6 5 5 5 5 5 1 . 1 . . . . . . . . . . . Reactor 3 | . . . . . . . . . . . . . . . . . . . . . . . 1 7 5 5 5 5 10 8 8 7 7 7 4 7 Treads 2 | . 14 14 10 11 11 11 15 . . . . . . . . . . . . . . . . . . . . . . . . . . . . . Wheel 3 | . 13 13 17 22 22 22 19 . . . . . . . . . . . . . . . 2 . . . . . . . . . . . . . Hover 12 | . . . . . . . . . . . . . . . . . . . . . . . 5 26 25 26 26 26 26 22 23 28 30 29 27 27 Flight 6 | . . . . . . . . 29 30 30 30 30 26 26 26 26 26 19 17 17 17 17 11 . . . . . . . . . . . . . Device 10 | . 3 3 13 . . . 7 6 7 7 7 7 13 13 13 13 13 11 16 11 11 11 12 10 9 13 15 11 15 15 12 11 14 10 13 16 Storage 6 | . 14 14 11 11 11 11 9 7 7 7 7 7 6 6 6 6 6 5 5 9 11 11 5 5 5 5 5 8 5 4 4 4 4 4 4 4 Processor 5 | . . . 2 . . . 7 7 7 7 7 7 6 6 6 6 6 5 5 5 5 5 7 10 6 5 5 5 5 4 4 4 4 4 8 12 Hackware 18 | . . . 5 11 11 11 5 22 23 23 23 23 23 26 26 26 26 33 29 24 23 23 23 21 21 21 21 21 21 20 24 24 20 17 10 . Protection 3 | . 5 10 1 11 11 11 5 . . . . . . . . . . . . 4 5 5 1 5 5 5 5 5 5 7 8 6 5 3 . . Energy Gun 1 | . . . 5 11 . 22 9 . . . . . . . . . . . . . . . . . . . . . . . . . . . . 3 Ballistic Gun 1 | . 26 14 5 . . . . . . . . . . . . . . . . . . . . . . . . . . . . . . . . . Launcher 1 | . . . . . . . . . . . 2 7 5 6 5 6 6 4 3 4 5 4 . . . . . . . . . . . . . . Impact Weapon 3 | . . 10 8 10 22 . . . . . . . . . . . . 4 4 5 5 5 6 10 5 5 5 3 5 4 4 3 3 . 3 . Piercing Weapon 2 | . . . . . . . 4 6 7 7 7 7 3 . . . . . 2 . . . 1 . 4 2 2 4 5 4 2 2 . . 3 4 Naked Turns . | . . . . . . . . . . . . . . . . . . . . . . . . . . . . . . . . . . . . . Heaviest Build 134 | 13 52 53 57 56 56 56 63 20 20 20 20 20 25 21 21 21 21 23 30 34 34 34 43 51 66 66 56 65 65 85 91 92 94 102 126 134 Greatest Support 139 | 10 10 40 32 20 20 20 36 20 20 20 20 20 29 29 29 29 29 35 35 35 35 38 74 74 83 67 67 68 84 84 85 116 116 116 139 134 Greatest Overweight (x) 15 | 1 5 5 15 2 2 2 3 . . . . . . . . . . 1 . 1 . . 2 . . . . . . 1 1 . . . 1 1 Average Overweight (x) . | . 4 4 1 2 2 2 1 . . . . . . . . . . . . . . . . . . . . . . . . . . . . . Largest Inventory Capacity 22 | 8 20 20 20 20 20 20 20 20 10 10 10 10 10 10 10 10 10 10 10 10 10 10 10 10 15 15 15 15 15 20 20 20 20 22 22 22 Average Capacity 15 | 7 19 20 20 20 20 20 20 10 10 10 10 10 10 10 10 10 10 10 10 10 10 10 10 10 14 15 15 15 15 17 20 20 20 20 22 22 Most Carried 22 | 6 19 19 20 20 20 20 20 20 10 10 10 10 10 10 10 10 10 10 10 10 9 10 10 10 15 15 15 15 15 19 20 20 20 20 22 22 Average Carried 14 | 3 12 18 17 19 20 20 19 10 9 10 9 10 9 10 9 10 9 9 9 9 9 9 9 9 13 14 14 14 14 15 19 19 19 19 20 21 Final Capacity 22 | 8 20 20 20 20 20 20 20 10 10 10 10 10 10 10 10 10 10 10 10 10 10 10 10 10 15 15 15 15 15 20 20 20 20 22 22 22 Final Carried 21 | 6 19 15 19 20 20 20 20 10 10 10 10 10 10 10 10 10 10 10 10 9 9 10 10 10 15 15 15 15 15 18 20 20 20 20 20 21 Class Distribution -------------------- 25% | Hacker-Mutant 17% | Wizard-Sprinter 17% | Wizard-Mutant 13% | Hacker-Sprinter 12% | Mutant 9% | Scavenger-Mutant Dominant Class ---------------- Mutant | -10/Materials Mutant | -10/Mines Mutant | -9/Materials Scavenger-Mutant | -9/Mines Scavenger-Mutant | -9/Exiles Scavenger-Mutant | -8/Mines Scavenger-Mutant | -8/Materials Hacker-Sprinter | -7/Factory Hacker-Sprinter | -7/Lower Caves Hacker-Sprinter | -7/Lower Caves Hacker-Sprinter | -7/Zion Hacker-Sprinter | -6/Proximity Caves Hacker-Sprinter | -6/Factory Hacker-Sprinter | -6/Lower Caves Hacker-Sprinter | -6/Lower Caves Hacker-Sprinter | -6/Data Miner Hacker-Sprinter | -5/Proximity Caves Wizard-Sprinter | -5/Factory Wizard-Sprinter | -5/Extension Hacker-Mutant | -5/Cetus Hacker-Sprinter | -5/Archives Hacker-Sprinter | -5/Hub_04(d) Wizard-Sprinter | -4/Factory Hacker-Mutant | -4/Waste Hacker-Mutant | -4/Factory Hacker-Mutant | -4/Upper Caves Hacker-Mutant | -4/Upper Caves Hacker-Mutant | -4/Warlord Hacker-Mutant | -3/Proximity Caves Hacker-Mutant | -3/Research Wizard-Mutant | -3/Testing Wizard-Mutant | -2/Research Wizard-Mutant | -2/Quarantine Wizard-Sprinter | -2/Section 7 Hacker-Mutant | -1/Access Infiltrator-Mutant | -1/Command Resources | -11 -10 -10 -9 -9 -9 -8 -8 -7 -7 -7 -7 -6 -6 -6 -6 -6 -5 -5 -5 -5 -5 -5 -4 -4 -4 -4 -4 -4 -3 -3 -3 -2 -2 -2 -1 -1 ----------- Run | Scr Mat Min Mat Min Exi Min Mat Fac Low Low Zio Pro Fac Low Low Dat Pro Fac Ext Cet Arc Hub Fac Was Fac Upp Upp War Pro Res Tes Res Qua Sec Acc Com Matter Collected 7536 | 238 604 155 759 52 . 47 435 . 166 154 27 23 52 68 8 . 32 310 160 75 . . 408 212 665 272 44 194 40 267 360 250 293 622 508 36 Remotely . | . . . . . . . . . . . . . . . . . . . . . . . . . . . . . . . . . . . . . Salvage Created 10836 | . 577 48 1314 253 . 64 1473 . . 62 . . 52 . . . 23 208 297 174 . . 583 . 813 149 . 187 47 544 668 998 358 941 967 36 Parts 434 | . 31 . 74 7 . 1 84 . . 10 . . 7 . . . 1 8 8 4 . . 22 . 35 3 . 2 . 18 18 23 2 40 31 5 Haulers Intercepted 11 | . 1 . 4 . . . 3 . . . . . . . . . . . . . . . . . . . . . . . . 2 . . 1 . Recyclers Shooed 10 | . 2 . . 1 . . 2 . . . . . . . . . . . 1 . . . 1 . . . . . . . . 1 . . 2 . Parts Field Recycled . | . . . . . . . . . . . . . . . . . . . . . . . . . . . . . . . . . . . . . Retrieved Matter . | . . . . . . . . . . . . . . . . . . . . . . . . . . . . . . . . . . . . . Parts Self-Destructed 41 | . . . . . . . . . . 9 . . . . 4 . 15 . . . . . . . . 3 . . 10 . . . . . . . Prevented . | . . . . . . . . . . . . . . . . . . . . . . . . . . . . . . . . . . . . . Kills | -11 -10 -10 -9 -9 -9 -8 -8 -7 -7 -7 -7 -6 -6 -6 -6 -6 -5 -5 -5 -5 -5 -5 -4 -4 -4 -4 -4 -4 -3 -3 -3 -2 -2 -2 -1 -1 ------- Run | Scr Mat Min Mat Min Exi Min Mat Fac Low Low Zio Pro Fac Low Low Dat Pro Fac Ext Cet Arc Hub Fac Was Fac Upp Upp War Pro Res Tes Res Qua Sec Acc Com Combat Hostiles Destroyed 193 | . 16 8 24 4 . . 25 . . 10 . . . . . . 1 6 1 7 . . 7 . 15 2 . 9 1 7 7 11 2 19 11 . Melee 39 | . . . 5 . . . . . . . . . . . . . 1 1 1 . . . 3 . 2 1 . 1 . 3 3 3 . 10 5 . Guns 42 | . 16 1 8 4 . . 13 . . . . . . . . . . . . . . . . . . . . . . . . . . . . . Cannons 11 | . . . 1 . . . 3 . . . . . . . . . . . . 1 . . 2 . . 1 . 1 . . . 1 . 1 . . AOE 69 | . . 7 3 . . . 8 . . 10 . . . . . . . 5 . 6 . . . . 8 . . 7 . 2 . 4 . 5 4 . Classes Destroyed 22 | . 5 2 5 . . . 2 . . . . . . . . . . 1 1 1 . . 1 . . 1 . 2 . . 1 . . . . . Worker 8 | . . . . . . . 1 . . . . . . . . . . . . . . . 2 . . . . . . . . 1 1 1 . 2 Builder 16 | . . . 3 . . . 2 . . . . . . . . . . . 1 . . . 1 . 2 . . . . 2 . 2 1 1 1 . Tunneler 4 | . . 1 . . . . . . . . . . . . . . . . . . . . 1 . 1 . . . . . . 1 . . . . Hauler 11 | . 1 . 4 . . . 3 . . . . . . . . . . . . . . . . . . . . . . . . 2 . . 1 . Recycler 18 | . 2 . 1 2 . 1 3 . . . . . . . . . . . 1 . . . 1 . 1 . . . . . . . 1 1 4 . Minesweeper 1 | . . . . . . . . . . . . . . . . . . . . . . . . . . 1 . . . . . . . . . . Mechanic 2 | . . . 1 . . . . . . . . . . . . . . . . . . . . . . . . . . . 1 . . . . . Operator 4 | . . . 1 . . . . . . . . . . . . . . . 1 . . . . . 1 . . . . . . . . . 1 . Drone 8 | . . . . . . . . . . . . . . . . . . 1 . . . . . . . . . . . . . . 2 5 . . Watcher 33 | . 1 . 4 . . . 2 . . . . . 2 . . . . 5 1 1 . . 1 . 1 . . . . 2 2 6 1 2 2 . Swarmer 55 | . 8 . 3 3 . . 8 . . 10 . . . . . . 1 5 . . . . . . 4 . . . . . . 5 . 4 4 . Grunt 53 | . 8 . 13 . . . 9 . . . . . . . . . . . . 6 . . . . 4 1 . 6 . 2 2 1 . 1 . . Brawler 2 | . . . . . . . . . . . . . . . . . . . . 1 . . . . . . . 1 . . . . . . . . Duelist 2 | . . . 1 1 . . . . . . . . . . . . . . . . . . . . . . . . . . . . . . . . Protector 2 | . . . . . . . . . . . . . . . . . . . . . . . . . . . . 1 . 1 . . . . . . Researcher 5 | . . . . . . . . . . . . . . . . . . . . . . . . . . . . . . . 3 . 2 . . . Sentry 20 | . . . 7 . . . 7 . . . . . . . . . . . . . . . . . 1 . . . . 1 . 1 . 2 1 . Hunter 8 | . . . . . . . 1 . . . . . . . . . . . . . . . . . 2 . . . . 1 2 . . . 2 . Programmer 31 | . . . . . . . . . . . . . . . . . . . . . . . 7 . 3 1 . . 1 2 3 3 . 7 4 . Behemoth 3 | . . . . . . . . . . . . . . . . . . . 1 . . . . . 1 . . . . . . 1 . . . . Executioner 1 | . . . . . . . . . . . . . . . . . . . . . . . . . . . . 1 . . . . . . . . Assembled 8 | . . 8 . . . . . . . . . . . . . . . . . . . . . . . . . . . . . . . . . . Best Kill Streak 10 | . 4 8 7 3 . 1 8 . . 10 . . 1 . . . 1 5 2 4 . . 4 . 5 2 . 9 1 3 3 6 2 4 5 2 Combat Bots Only 10 | . 3 8 4 3 . . 6 . . 10 . . . . . . 1 5 1 4 . . 2 . 4 1 . 9 1 3 3 5 1 4 4 . Max Kills in Single Turn 6 | . 2 3 2 2 . 1 3 . . 4 . . 1 . . . 1 3 1 3 . . 1 . 5 1 . 2 1 1 1 6 1 2 3 1 Gunslinging 1 | . . . . 1 . . . . . . . . . . . . . . . . . . . . . . . . . . . . . . . . Exploded 4 | . . 3 2 . . . 3 . . 4 . . . . . . . 3 . 3 . . . . 4 . . 2 . 1 . 4 . 2 2 . Melee 1 | . . . 1 . . . . . . . . . . . . . 1 1 1 . . . 1 . 1 1 . 1 . 1 1 1 . 1 1 . Uniques/NPCs Destroyed . | . . . . . . . . . . . . . . . . . . . . . . . . . . . . . . . . . . . . . Combat | -11 -10 -10 -9 -9 -9 -8 -8 -7 -7 -7 -7 -6 -6 -6 -6 -6 -5 -5 -5 -5 -5 -5 -4 -4 -4 -4 -4 -4 -3 -3 -3 -2 -2 -2 -1 -1 -------- Run | Scr Mat Min Mat Min Exi Min Mat Fac Low Low Zio Pro Fac Low Low Dat Pro Fac Ext Cet Arc Hub Fac Was Fac Upp Upp War Pro Res Tes Res Qua Sec Acc Com Damage Taken 18037 | . 510 530 1190 64 . . 1204 . . 191 . . 20 . 34 . 61 193 326 82 . 238 1359 23 1921 163 53 133 24 231 638 736 564 4324 1835 1390 Core 3522 | . 146 102 274 . . . 137 . . 90 . . 20 . 29 . 33 85 69 11 . 20 211 23 195 19 . 8 . 6 105 65 107 1025 327 415 Absorbed by Shields 1165 | . . . . . . . . . . . . . . . . . . . . 60 . . 3 . . . . 92 2 14 . . . . 983 11 Redirected to Shielding 419 | . 18 34 . . . . . . . . . . . . . . . . . . . . . . . . . . . 10 93 109 42 113 . . Regen/Repaired (Parts) 5990 | . . . . . . . . . . . 101 . . . . . . 111 . . . . 488 . 1534 . . . . 448 732 263 397 1184 732 . Core Remaining (%) 61 | 100 . . . . . 31 75 . . . . 87 . . . . 90 . . . . 81 . . . . . . 60 . 91 . . 14 . 47 Volleys Fired 286 | . 47 8 44 7 . 1 62 3 . 9 . . 1 . 4 . . 10 . 7 . 1 12 . 12 3 2 9 . . 6 2 4 21 6 5 Largest 2 | . 2 2 2 2 . 2 2 1 . 1 . . 1 . 1 . . 1 . 1 . 1 1 . 1 1 1 1 . . 1 1 1 1 1 1 Hottest 136 | . 46 56 136 90 . 90 90 30 . 30 . . 30 . 30 . . 30 . . . 98 98 . 98 98 98 . . . 113 120 120 120 120 120 Shots Fired 422 | . 94 11 85 14 . 2 99 3 . 9 . . 1 . 4 . . 10 . 7 . 1 12 . 12 3 2 9 . . 6 2 4 21 6 5 Gun 257 | . 94 5 67 14 . 2 75 . . . . . . . . . . . . . . . . . . . . . . . . . . . . . Cannon 112 | . . . 18 . . . 19 3 . . . . 1 . 4 . . 7 . . . 1 12 . 7 3 2 . . . 6 1 4 15 4 5 Launcher 31 | . . 6 . . . . 5 . . 9 . . . . . . . 3 . . . . . . 5 . . . . . . . . 1 2 . Special 22 | . . . . . . . . . . . . . . . . . . . . 7 . . . . . . . 9 . . . 1 . 5 . . Kinetic 146 | . 94 5 47 . . . . . . . . . . . . . . . . . . . . . . . . . . . . . . . . . Thermal 112 | . . . 18 . . . 19 3 . . . . 1 . 4 . . 7 . . . 1 12 . 7 3 2 . . . 6 1 4 15 4 5 Explosive 52 | . . 6 . . . . 5 . . 9 . . . . . . . 3 . 7 . . . . 5 . . 8 . . . 1 . 6 2 . Electromagnetic 111 | . . . 20 14 . 2 75 . . . . . . . . . . . . . . . . . . . . . . . . . . . . . Robot Hit Streak 25 | . 6 5 9 5 . 5 25 . . . . . . . . . . 2 . 7 . . 8 . 8 1 . 8 . . . 9 . 1 . . Robot Miss Streak 7 | . 7 4 5 2 . . 3 . . . . . . . . . . 2 . . . . 3 . 1 1 . . . . . . . 4 1 . Penetration Max . | . . . . . . . . . . . . . . . . . . . . . . . . . . . . . . . . . . . . . Secondary Targets 8 | . 2 . 1 1 . . 4 . . . . . . . . . . . . . . . . . . . . . . . . . . . . . Max Gunslinging Chain 1 | . 1 . 1 1 . . 1 . . . . . . . . . . . . . . . . . . . . . . . . . . . . . Shots Hit Robots 672 | . 78 8 115 15 . 2 88 . . . . . 4 . . . 1 7 14 7 . . 43 . 46 3 . 8 6 34 33 44 13 53 48 2 Core Hits 330 | . 31 16 44 8 . 2 67 . . 18 . . 1 . . . 1 6 4 19 . . 11 . 16 1 . 26 . 8 6 9 1 20 14 1 Critical Kills 8 | . . . 3 . . . . . . . . . . . . . . . . . . . 1 . 1 . . . . 1 . 1 . 1 . . Critical Parts Destroyed 58 | . . . 8 1 . . . . . . . . . . . . . . 1 . . . 6 . 10 2 . 1 1 3 3 13 3 2 4 . Critical Strikes 89 | . . . 15 1 . . . . . . . . . . . . . . 3 2 . . 7 . 12 2 . 3 1 5 3 16 3 8 7 1 Destroy 1 | . . . 1 . . . . . . . . . . . . . . . . . . . . . . . . . . . . . . . . . Smash 70 | . . . 14 1 . . . . . . . . . . . . . . 2 . . . 7 . 11 2 . 1 1 4 3 14 3 3 4 . Sever 10 | . . . . . . . . . . . . . . . . . . . . 2 . . . . . . . 2 . . . . . 5 1 . Impale 8 | . . . . . . . . . . . . . . . . . . . 1 . . . . . 1 . . . . 1 . 2 . . 2 1 Melee Attacks 1036 | . 2 2 86 2 . . 14 11 16 10 1 4 27 6 11 . 14 41 18 . . 1 101 . 98 4 2 5 33 63 80 98 48 127 95 16 Impact 639 | . 2 2 85 2 . . . . . . . . . . . . . 38 10 . . 1 88 . 72 4 1 4 30 47 63 78 44 22 46 . Slashing 193 | . . . . . . . . . . . . . 10 6 11 . 14 3 . . . . . . . . . . . . 5 5 4 105 30 . Piercing 203 | . . . . . . . 14 11 16 10 1 4 17 . . . . . 8 . . . 13 . 26 . 1 1 3 16 12 15 . . 19 16 Sneak Attacks 68 | . 2 2 4 2 . . 3 . . . . . . . . . . 1 6 . . . 6 . 6 2 . . . 2 5 6 6 7 6 2 Combat Hostiles 7 | . . . . . . . . . . . . . . . . . . 1 3 . . . . . 1 1 . . . . . . . 1 . . Follow-up Attacks 60 | . . . 8 . . . . . . . . . . . . . . . 1 . . . 2 . 4 . . . . 8 6 8 . 2 21 . Damage Inflicted 41945 | . 1131 719 2796 442 . 44 2652 . . 866 . . 161 . . . 32 778 915 1872 . . 2445 . 3383 288 . 3472 372 2146 2181 3132 1088 5889 4887 254 Guns 3146 | . 1042 42 669 165 . 44 1184 . . . . . . . . . . . . . . . . . . . . . . . . . . . . . Cannons 911 | . . . 266 . . . 323 . . . . . . . . . . . . . . . 282 . . 40 . . . . . . . . . . Explosions 13189 | . . 575 172 140 . . 949 . . 866 . . . . . . . 311 . 1612 . . . . 1361 . . 3048 . 438 . 608 . 1326 1783 . Melee 23958 | . 89 102 1689 137 . . 196 . . . . . 161 . . . 32 467 915 . . . 2163 . 2022 248 . 91 372 1708 2181 2474 1088 4465 3104 254 Ramming . | . . . . . . . . . . . . . . . . . . . . . . . . . . . . . . . . . . . . . Kinetic 1497 | . 1042 42 413 . . . . . . . . . . . . . . . . . . . . . . . . . . . . . . . . . Thermal 2086 | . . . 438 140 . . 880 . . . . . . . . . . . . . . . 282 . 306 40 . . . . . . . . . . Explosive 11913 | . . 575 . . . . 392 . . 866 . . . . . . . 311 . 1612 . . . . 1055 . . 3048 . 337 . 608 . 1326 1783 . Electromagnetic 1750 | . . . 256 165 . 44 1184 . . . . . . . . . . . . . . . . . . . . . . 101 . . . . . . Impact 16111 | . 89 102 1689 137 . . . . . . . . . . . . . 467 592 . . . 1771 . 1708 248 . 91 372 1430 1981 2272 1088 687 1387 . Slashing 6201 | . . . . . . . . . . . . . 49 . . . 32 . . 260 . . . . . . . 333 . . 145 112 . 3876 1394 . Piercing 2387 | . . . . . . . 196 . . . . . 112 . . . . . 323 . . . 392 . 314 . . . . 278 55 140 . . 323 254 Highest Corruption 23 | . . . 5 5 5 5 . 1 1 1 1 . . . . . . 2 1 . . 2 16 16 17 18 23 23 . 3 1 2 . 10 4 . Average Corruption 8 | . . . 5 5 5 5 . 1 1 1 1 . . . . . . 1 1 . . 1 8 16 16 17 19 23 . 2 1 1 . 6 3 . Corruption Purged 13 | . . . . . . . . . . . . . . . . . . 2 1 . . . . . . . . . . 3 1 2 . . 4 . Corruption Blocked 70 | . . . . . . . . . . . . . . . . . . . . . . . . . . . . . . . 30 . 40 . . . Effects 288 | . . . 28 15 4 2 . 1 . 1 . . . . . . . 1 3 . . 1 37 8 115 15 15 1 . 3 . . . 30 8 . Message Errors 72 | . . . 4 3 2 . . 1 . 1 . . . . . . . . . . . . 13 4 25 3 6 1 . . . . . 6 3 . Matter Fused 75 | . . . 8 3 1 . . . . . . . . . . . . . . . . 1 7 1 32 6 2 . . 1 . . . 11 2 . Heat Flow Errors 38 | . . . 5 2 1 . . . . . . . . . . . . . 1 . . . 4 1 12 2 4 . . 1 . . . 4 1 . Energy Discharges 41 | . . . 6 3 . 1 . . . . . . . . . . . . 2 . . . 5 . 20 3 . . . . . . . 1 . . Parts Rejected 4 | . . . 1 . . . . . . . . . . . . . . . . . . . . . 2 . . . . . . . . 1 . . Data Loss (minor) 34 | . . . 2 3 . 1 . . . . . . . . . . . 1 . . . . 5 1 12 1 3 . . . . . . 4 1 . Data Loss (major) 13 | . . . 2 1 . . . . . . . . . . . . . . . . . . 1 1 6 . . . . . . . . 2 . . Alerts 7 | . . . . . . . . . . . . . . . . . . . . . . . 2 . 2 . . . . 1 . . . 1 1 . Misdirections 4 | . . . . . . . . . . . . . . . . . . . . . . . . . 4 . . . . . . . . . . . Overload Shots . | . . . . . . . . . . . . . . . . . . . . . . . . . . . . . . . . . . . . . Overflow Damage 9383 | . 42 72 436 112 . . 40 . . 35 . . 64 . . . . 321 304 30 . . 749 . 985 248 . 219 207 539 841 1257 565 965 1262 90 Projectiles 76 | . . . 11 . . . 13 . . . . . . . . . . . . 9 . . . . . . . 43 . . . . . . . . Explosions 928 | . . 12 11 . . . 27 . . 35 . . . . . . . 37 . 21 . . . . 92 . . 85 . 2 . 23 . 166 417 . Melee 8379 | . 42 60 414 112 . . . . . . . . 64 . . . . 284 304 . . . 749 . 893 248 . 91 207 537 841 1234 565 799 845 90 Knockbacks 65 | . . . 7 2 . . . . . . . . . . . . . 3 1 . . . 7 . 10 1 . . 1 4 11 8 3 3 4 . Impact 63 | . . . 7 2 . . . . . . . . . . . . . 3 1 . . . 7 . 9 1 . . 1 4 11 7 3 3 4 . Kinetic . | . . . . . . . . . . . . . . . . . . . . . . . . . . . . . . . . . . . . . Secondary 2 | . . . . . . . . . . . . . . . . . . . . . . . . . 1 . . . . . . 1 . . . . Self-Inflicted Damage 211 | . . 49 36 . . . 62 . . 41 . . . . . . . 23 . . . . . . . . . . . . . . . . . . Shots 7 | . . 1 1 . . . 2 . . 2 . . . . . . . 1 . . . . . . . . . . . . . . . . . . Rammed . | . . . . . . . . . . . . . . . . . . . . . . . . . . . . . . . . . . . . . Targets Rammed . | . . . . . . . . . . . . . . . . . . . . . . . . . . . . . . . . . . . . . Kicked . | . . . . . . . . . . . . . . . . . . . . . . . . . . . . . . . . . . . . . Crushed . | . . . . . . . . . . . . . . . . . . . . . . . . . . . . . . . . . . . . . Highest Temperature 450 | . 22 18 140 192 203 33 30 . . . . . . . . . . . 91 . . 46 216 253 429 323 450 112 4 269 50 108 . 162 . . Average Temperature 98 | . 6 10 43 79 108 20 15 . . . . . . . . . . . 54 . . 29 74 86 133 102 108 25 4 47 30 25 . 60 . . Received Heat Transfer 1882 | . 186 40 339 27 . . 432 . . . . . 9 . 6 . . . 54 38 . 18 55 . 277 . 9 18 . 9 150 54 . 99 8 54 Effects 20 | . . . . . . . . . . . . . . . . . . . . . . . . . 15 3 2 . . . . . . . . . Shutdowns 1 | . . . . . . . . . . . . . . . . . . . . . . . . . 1 . . . . . . . . . . . Energy Bleed 5 | . . . . . . . . . . . . . . . . . . . . . . . . . 2 2 1 . . . . . . . . . Interference 14 | . . . . . . . . . . . . . . . . . . . . . . . . . 12 1 1 . . . . . . . . . Siege Activations . | . . . . . . . . . . . . . . . . . . . . . . . . . . . . . . . . . . . . . Robots Corrupted 1 | . . . . . . . 1 . . . . . . . . . . . . . . . . . . . . . . . . . . . . . Combat Hostiles 1 | . . . . . . . 1 . . . . . . . . . . . . . . . . . . . . . . . . . . . . . Parts Fried 105 | . 1 1 10 5 . . 6 . . . . . . . . . . 6 5 . . . 5 . 6 . . . 2 14 11 14 9 3 7 . Impact Corruptions 228 | . 2 3 16 3 . . . . . . . . . . . . . 11 6 . . . 24 . 26 4 . 1 7 20 24 36 19 8 18 . Robots Melted . | . . . . . . . . . . . . . . . . . . . . . . . . . . . . . . . . . . . . . Combat Hostiles . | . . . . . . . . . . . . . . . . . . . . . . . . . . . . . . . . . . . . . Parts Melted 4 | . . . . . . . 1 . . . . . . . . . . . . . . . . . . 2 . . . . . 1 . . . . Heat Transferred 2475 | . . . 731 200 . . 994 . . . . . . . . . . . . . . . 350 . 150 50 . . . . . . . . . . Parts Sabotaged . | . . . . . . . . . . . . . . . . . . . . . . . . . . . . . . . . . . . . . Parts Stolen . | . . . . . . . . . . . . . . . . . . . . . . . . . . . . . . . . . . . . . Parts Stripped . | . . . . . . . . . . . . . . . . . . . . . . . . . . . . . . . . . . . . . Power Chain Reactions 10 | . . . 2 2 . . 6 . . . . . . . . . . . . . . . . . . . . . . . . . . . . . Missiles Intercepted . | . . . . . . . . . . . . . . . . . . . . . . . . . . . . . . . . . . . . . Alert | -11 -10 -10 -9 -9 -9 -8 -8 -7 -7 -7 -7 -6 -6 -6 -6 -6 -5 -5 -5 -5 -5 -5 -4 -4 -4 -4 -4 -4 -3 -3 -3 -2 -2 -2 -1 -1 ------- Run | Scr Mat Min Mat Min Exi Min Mat Fac Low Low Zio Pro Fac Low Low Dat Pro Fac Ext Cet Arc Hub Fac Was Fac Upp Upp War Pro Res Tes Res Qua Sec Acc Com Peak Influence 926 | . 353 120 526 394 . 5 341 278 . . . . 170 . . . . 640 617 740 441 689 529 129 496 . . . . 311 166 338 364 926 890 761 Initial 555 | . . 115 26 204 . . 1 154 . . . . 9 . . . . 140 57 344 296 154 290 14 90 . . . . 22 . 93 36 204 555 288 Average 253 | . 204 95 270 237 . 2 176 209 . . . . 52 . . . . 325 346 622 383 152 224 88 241 . . . . 136 55 194 186 431 652 453 Maximum Alert Level 3 | . 1 . 2 1 . . 1 1 . . . . . . . . . 2 2 3 2 2 2 . 2 . . . . 1 . 1 1 3 3 3 Low Security (%) 43 | 100 42 100 30 6 . 100 65 36 . . . . 100 . . . . 34 16 . . 82 43 100 27 . . . . 75 100 50 58 4 . . Level 1 37 | . 57 . 52 93 . . 34 63 . . . . . . . . . 11 50 27 45 . 34 . 68 . . . . 24 . 49 41 48 . 23 Level 2 16 | . . . 17 . . . . . . . . . . . . . . 53 32 8 54 17 21 . 4 . . . . . . . . 39 72 74 Level 3 2 | . . . . . . . . . . . . . . . . . . . . 63 . . . . . . . . . . . . . 6 27 1 Level 4 . | . . . . . . . . . . . . . . . . . . . . . . . . . . . . . . . . . . . . . Level 5 . | . . . . . . . . . . . . . . . . . . . . . . . . . . . . . . . . . . . . . High Security . | . . . . . . . . . . . . . . . . . . . . . . . . . . . . . . . . . . . . . Max Security . | . . . . . . . . . . . . . . . . . . . . . . . . . . . . . . . . . . . . . Squads Dispatched 77 | . 5 . 5 . . . 2 3 . . . . 3 . . . . 6 1 . . 1 9 . 11 . . . . 3 4 5 5 10 4 . Investigation 33 | . 2 . 4 . . . 2 3 . . . . 2 . . . . 5 . . . . 5 . 5 . . . . 2 1 . . 1 1 . Extermination 19 | . . . . . . . . . . . . . . . . . . . . . . . 3 . 3 . . . . 1 2 2 2 5 1 . Reinforcement 24 | . 3 . 1 . . . . . . . . . 1 . . . . 1 1 . . 1 1 . 3 . . . . . 1 2 3 4 2 . Assault . | . . . . . . . . . . . . . . . . . . . . . . . . . . . . . . . . . . . . . Garrison 1 | . . . . . . . . . . . . . . . . . . . . . . . . . . . . . . . . 1 . . . . Intercept . | . . . . . . . . . . . . . . . . . . . . . . . . . . . . . . . . . . . . . Searches Triggered 8 | . . . . . . . . . . . . . . . . . . . . . . . 1 . . . . . . . . . . 3 3 1 Data Miner Redirects 6 | . . . . . . . . . . . . . . . . . . 2 . . . . 2 . 1 . . . . . . . . . 1 . Construction Impeded 1 | . . . . . . . . . . . . . . . . . . . . . . 1 . . . . . . . . . . . . . . Haulers Reinforced 2 | . . . . . . . . . . . . . . . . . . . . . . . . . . . . . . . . 1 . . 1 . Active Scanning Responses . | . . . . . . . . . . . . . . . . . . . . . . . . . . . . . . . . . . . . . Cargo Convoy Interrupts . | . . . . . . . . . . . . . . . . . . . . . . . . . . . . . . . . . . . . . Stealth | -11 -10 -10 -9 -9 -9 -8 -8 -7 -7 -7 -7 -6 -6 -6 -6 -6 -5 -5 -5 -5 -5 -5 -4 -4 -4 -4 -4 -4 -3 -3 -3 -2 -2 -2 -1 -1 --------- Run | Scr Mat Min Mat Min Exi Min Mat Fac Low Low Zio Pro Fac Low Low Dat Pro Fac Ext Cet Arc Hub Fac Was Fac Upp Upp War Pro Res Tes Res Qua Sec Acc Com Distress Signals 25 | . 5 . 1 . . . 4 . . . . . . . . . . 1 3 1 . 1 . . 1 . . . . . 1 2 1 2 1 1 Communications Jammed 39 | . . . . . . . . . . . . . . . . . . . 9 . . . . . 27 . . . . . . . . 3 . . Distress Signals 37 | . . . . . . . . . . . . . . . . . . . 9 . . . . . 25 . . . . . . . . 3 . . Times Spotted 547 | . 33 10 32 8 . . 39 7 . 16 . 1 10 2 3 . 6 20 19 13 2 15 29 1 42 1 1 20 3 7 16 22 21 87 25 36 Peak Tracking Total 19 | . 6 6 4 4 . . 7 5 . 12 . 1 5 4 5 . 5 6 6 5 1 12 9 1 8 1 1 11 1 2 3 11 6 19 8 14 Tactical Retreats 72 | . 2 1 . . . . 2 . . 3 . 1 3 1 2 . 1 5 1 . . 1 6 . 4 . . . . 1 2 2 2 22 3 7 Traps | -11 -10 -10 -9 -9 -9 -8 -8 -7 -7 -7 -7 -6 -6 -6 -6 -6 -5 -5 -5 -5 -5 -5 -4 -4 -4 -4 -4 -4 -3 -3 -3 -2 -2 -2 -1 -1 ------- Run | Scr Mat Min Mat Min Exi Min Mat Fac Low Low Zio Pro Fac Low Low Dat Pro Fac Ext Cet Arc Hub Fac Was Fac Upp Upp War Pro Res Tes Res Qua Sec Acc Com Traps Triggered 31 | . . . 6 . . . . . . . . . . . . . . 2 1 . . . 8 . 1 1 . . . 3 2 2 . 1 3 1 Indirectly . | . . . . . . . . . . . . . . . . . . . . . . . . . . . . . . . . . . . . . Trap Hack Attempts . | . . . . . . . . . . . . . . . . . . . . . . . . . . . . . . . . . . . . . Triggered . | . . . . . . . . . . . . . . . . . . . . . . . . . . . . . . . . . . . . . Disarmed 16 | . . . . . . . . . . . . . . . . . . 1 4 . . . . . 5 . . . . . . . . 6 . . Reprogrammed 88 | . . . . . . . . . . . . . . . . . . 10 1 . . 1 5 . 11 . . . . 19 6 23 6 6 . . Reused 32 | . . . . . . . . . . . . . . . . . . 6 1 . . . 5 . 2 . . . . 4 4 6 3 1 . . Traps Extracted . | . . . . . . . . . . . . . . . . . . . . . . . . . . . . . . . . . . . . . Installed 3 | . . . . . . . . . . . . . . . . . . . . . . . . . . 3 . . . . . . . . . . Triggered 46 | . . . . . . . . . . . . . . . . . . 6 2 . . . 7 . 2 . . 11 . 4 4 6 3 1 . . Machines | -11 -10 -10 -9 -9 -9 -8 -8 -7 -7 -7 -7 -6 -6 -6 -6 -6 -5 -5 -5 -5 -5 -5 -4 -4 -4 -4 -4 -4 -3 -3 -3 -2 -2 -2 -1 -1 ---------- Run | Scr Mat Min Mat Min Exi Min Mat Fac Low Low Zio Pro Fac Low Low Dat Pro Fac Ext Cet Arc Hub Fac Was Fac Upp Upp War Pro Res Tes Res Qua Sec Acc Com Machines Disabled 48 | . . . 2 . . . 2 . 1 . . . . . . . . 5 2 . 3 14 . . 2 . 1 . . 2 3 . 4 5 2 . Max in Single Turn 4 | . . . 1 . . . 1 . 1 . . . . . . . . 4 . . . . . . 2 . 1 . . 1 1 . 1 1 1 . Garrison Access 19 | . . . . . . . . 1 . . . . 1 . . . . 3 . . . 1 3 . 4 . . . . 2 1 1 1 . 1 . Network Hub 1 | . . . . . . . . . . . . . . . . . . . . . . 1 . . . . . . . . . . . . . . Machines Sabotaged . | . . . . . . . . . . . . . . . . . . . . . . . . . . . . . . . . . . . . . Garrisons Compromised . | . . . . . . . . . . . . . . . . . . . . . . . . . . . . . . . . . . . . . Overloaded Fab Kills . | . . . . . . . . . . . . . . . . . . . . . . . . . . . . . . . . . . . . . Hacking | -11 -10 -10 -9 -9 -9 -8 -8 -7 -7 -7 -7 -6 -6 -6 -6 -6 -5 -5 -5 -5 -5 -5 -4 -4 -4 -4 -4 -4 -3 -3 -3 -2 -2 -2 -1 -1 --------- Run | Scr Mat Min Mat Min Exi Min Mat Fac Low Low Zio Pro Fac Low Low Dat Pro Fac Ext Cet Arc Hub Fac Was Fac Upp Upp War Pro Res Tes Res Qua Sec Acc Com Machines Accessed 234 | . 8 . 13 . 1 . 7 10 1 . 1 . 14 . . 4 1 22 4 2 . 6 22 . 28 . 3 7 . 15 15 16 16 12 4 2 Terminals 131 | . 6 . 11 . . . 6 6 . . . . 9 . . . 1 10 4 2 . 5 8 . 11 . 1 . . 8 9 11 10 10 2 1 Fabricators 24 | . . . . . . . . 2 . . . . 3 . . . . 3 . . . . 4 . 5 . . . . 2 2 3 . . . . Repair Stations 17 | . . . . . . . . . . . . . . . . . . 1 . . . . 3 . 4 . . . . 2 2 1 2 1 1 . Recycling Units 14 | . 2 . 2 . . . 1 . . . . . . . . . . 3 . . . . 3 . 2 . . . . . . . . . . 1 Scanalyzers 13 | . . . . . . . . 1 . . . . 1 . . . . 2 . . . . 1 . 2 . . . . 1 1 . 3 1 . . Garrison Access 19 | . . . . . . . . 1 . . . . 1 . . . . 3 . . . 1 3 . 4 . . . . 2 1 1 1 . 1 . Total Hacks 1051 | . 25 . 46 . 1 . 33 50 1 . 3 . 53 . . 31 1 98 23 5 . 27 100 . 110 . 8 25 . 86 73 93 71 59 22 7 Successful 787 | . 17 . 28 . 1 . 18 34 1 . 3 . 34 . . 31 1 85 9 5 . 25 82 . 94 . 8 25 . 58 61 71 46 41 8 1 Failed 263 | . 8 . 18 . . . 15 16 . . . . 19 . . . . 13 14 . . 2 18 . 16 . . . . 27 12 22 25 18 14 6 Catastrophic 12 | . 1 . 1 . . . 1 . . . . . . . . . . 1 1 . . . 2 . . . . . . 1 . 3 . 1 . . Database Lockouts 1 | . . . . . . . . . . . . . . . . . . . . . . . . . . . . . . 1 . . . . . . Manual 397 | . 6 . 22 . . . 20 19 1 . . . 25 . . . . 42 13 1 . 16 44 . 26 . . . . 37 31 39 30 25 . . Terminals 674 | . 21 . 43 . . . 32 36 . . . . 34 . . . 1 51 23 5 . 26 53 . 52 . 1 . . 59 48 75 55 46 11 2 Fabricators 105 | . . . . . . . . 9 . . . . 16 . . . . 14 . . . . 14 . 21 . . . . 12 9 10 . . . . Repair Stations 92 | . . . . . . . . . . . . . . . . . . 6 . . . . 13 . 20 . . . . 8 13 7 12 6 7 . Recycling Units 38 | . 4 . 3 . . . 1 . . . . . . . . . . 9 . . . . 9 . 7 . . . . . . . . . . 5 Scanalyzers 47 | . . . . . . . . 4 . . . . 2 . . . . 14 . . . . 7 . 6 . . . . 3 1 . 3 7 . . Garrison Access 27 | . . . . . . . . 1 . . . . 1 . . . . 4 . . . 1 4 . 4 . . . . 4 2 1 1 . 4 . Terminal Hacks 400 | . 11 . 19 . 1 . 12 14 1 . 3 . 16 . . 31 1 28 6 5 . 16 29 . 30 . 8 25 . 27 26 42 24 22 3 . Record 39 | . . . . . 1 . . . . . . . . . . 11 1 . . 4 . . . . . . 8 14 . . . . . . . . Part Schematic 42 | . . . . . . . 3 2 . . 3 . 4 . . 10 . 2 . . . 1 7 . . . . . . 2 6 1 . . 1 . Robot Schematic 10 | . . . . . . . . . . . . . . . . 7 . . . . . . . . 1 . . . . 1 . 1 . . . . Robot Analysis 10 | . 1 . 1 . . . . . . . . . . . . . . 1 . . . . . . 1 . . . . . 1 . 4 1 . . Prototype ID Bank 47 | . 1 . 8 . . . . 1 . . . . 1 . . 3 . 3 1 . . 2 3 . 3 . . 10 . 3 3 3 1 1 . . Open Door 9 | . . . . . . . . . 1 . . . . . . . . . . 1 . . . . . . . 1 . . . 2 . 4 . . Level Access Points 2 | . . . . . . . . . . . . . . . . . . . . . . . . . . . . . . . . . 1 1 . . Branch Access Points 10 | . 1 . 1 . . . . 1 . . . . 1 . . . . 1 . . . . 1 . 1 . . . . 1 . 1 . . 1 . Emergency Access Points 2 | . . . . . . . . . . . . . . . . . . . . . . 1 . . . . . . . . . 1 . . . . Machine Index 7 | . . . . . . . . . . . . . . . . . . 1 . . . 1 1 . 1 . . . . . 1 . 1 . 1 . Terminal Index 7 | . . . . . . . . 1 . . . . 1 . . . . 1 . . . 1 . . 1 . . . . . . 1 . 1 . . Fabricator Index 4 | . . . . . . . . 1 . . . . 1 . . . . . . . . . . . . . . . . 1 . 1 . . . . Repair Station Index 1 | . . . . . . . . . . . . . . . . . . . . . . . . . . . . . . . . 1 . . . . Recycling Unit Index 2 | . 1 . . . . . . 1 . . . . . . . . . . . . . . . . . . . . . . . . . . . . Scanalyzer Index 1 | . . . . . . . . . . . . . . . . . . . . . . . . . . . . . . . . . . 1 . . Garrison Index 3 | . . . . . . . . . . . . . . . . . . . . . . . . . . . . . . 1 . 1 . 1 . . Alert Level 12 | . 1 . 1 . . . . . . . . . . . . . . 2 1 . . 1 1 . 2 . . . . . . 2 1 . . . Unreport Threat 22 | . . . . . . . 1 . . . . . 1 . . . . 3 . . . 2 2 . 3 . . . . 3 2 3 . 2 . . Locate Traps 45 | . 3 . 1 . . . 2 . . . . . 3 . . . . 5 2 . . 2 3 . 5 . . . . 4 2 7 4 2 . . Disarm Traps 4 | . . . . . . . . . . . . . . . . . . 1 1 . . . . . 1 . . . . . . . . 1 . . Reprogram Traps 22 | . . . . . . . . . . . . . . . . . . 2 1 . . 2 1 . 3 . . . . 4 1 5 2 1 . . Security Status 1 | . . . . . . . . . . . . . . . . . . . . . . . . . . . . . . . . . 1 . . . Transport Status 3 | . . . 1 . . . 2 . . . . . . . . . . . . . . . . . . . . . . . . . . . . . Recall Investigation 8 | . . . 1 . . . . 1 . . . . 1 . . . . . . . . . 2 . . . . . . 2 1 . . . . . Recall Extermination 7 | . . . . . . . . . . . . . . . . . . . . . . . 1 . 1 . . . . . 1 1 1 2 . . Recall Reinforcements 9 | . 2 . . . . . . . . . . . 1 . . . . 1 . . . . . . 1 . . . . . 1 2 1 . . . Hauler Manifests 12 | . . . 1 . . . 2 1 . . . . . . . . . 1 . . . . 1 . 1 . . . . 1 1 2 1 . . . Registered Components 2 | . . . . . . . . . . . . . . . . . . . . . . . 1 . . . . . . 1 . . . . . . Zone Layout 57 | . 1 . 4 . . . 2 5 . . . . 2 . . . . 4 . . . 3 5 . 5 . . . . 3 6 7 6 4 . . Fabricator Hacks 60 | . . . . . . . . 6 . . . . 9 . . . . 9 . . . . 9 . 13 . . . . 7 5 2 . . . . Network Status 7 | . . . . . . . . 1 . . . . 1 . . . . 1 . . . . 1 . . . . . . 1 . 2 . . . . Load Schematic 30 | . . . . . . . . 3 . . . . 4 . . . . 4 . . . . 4 . 8 . . . . 4 3 . . . . . Build 23 | . . . . . . . . 2 . . . . 4 . . . . 4 . . . . 4 . 5 . . . . 2 2 . . . . . Repair Station Hacks 81 | . . . . . . . . . . . . . . . . . . 6 . . . . 12 . 19 . . . . 6 12 6 10 6 4 . Scan Component 39 | . . . . . . . . . . . . . . . . . . 3 . . . . 5 . 9 . . . . 3 6 3 5 3 2 . Repair 39 | . . . . . . . . . . . . . . . . . . 3 . . . . 5 . 9 . . . . 3 6 3 5 3 2 . Refit 3 | . . . . . . . . . . . . . . . . . . . . . . . 2 . 1 . . . . . . . . . . . Recycling Unit Hacks 17 | . 2 . 2 . . . . . . . . . . . . . . 4 . . . . 4 . 4 . . . . . . . . . . 1 Report Inventory 11 | . 1 . 2 . . . . . . . . . . . . . . 3 . . . . 3 . 2 . . . . . . . . . . . Retrieve Components 6 | . 1 . . . . . . . . . . . . . . . . 1 . . . . 1 . 2 . . . . . . . . . . 1 Scanalyzer 40 | . . . . . . . . 4 . . . . . . . . . 12 . . . . 4 . 6 . . . . 3 1 . 3 7 . . Insert Component 25 | . . . . . . . . 2 . . . . . . . . . 4 . . . . 3 . 3 . . . . 2 1 . 3 7 . . Analyze 15 | . . . . . . . . 2 . . . . . . . . . 8 . . . . 1 . 3 . . . . 1 . . . . . . Garrison Access Hacks 19 | . . . . . . . . 1 . . . . 1 . . . . 3 . . . 1 3 . 4 . . . . 2 1 1 1 . 1 . Seal Access 19 | . . . . . . . . 1 . . . . 1 . . . . 3 . . . 1 3 . 4 . . . . 2 1 1 1 . 1 . Unauthorized Hacks 170 | . 4 . 7 . . . 6 9 . . . . 8 . . . . 23 3 . . 8 21 . 18 . . . . 13 16 20 8 6 . . Terminals 118 | . 2 . 6 . . . 5 6 . . . . 7 . . . . 12 3 . . 8 12 . 8 . . . . 10 13 12 8 6 . . Track 38 | . 1 . 2 . . . 1 1 . . . . 2 . . . . 4 . . . 2 5 . 3 . . . . 4 3 7 2 1 . . Assimilate 19 | . . . . . . . 1 2 . . . . 2 . . . . 2 . . . 2 . . 1 . . . . . 5 . 2 2 . . Botnet 37 | . 1 . 3 . . . 3 2 . . . . 2 . . . . 3 1 . . 3 4 . 2 . . . . 3 3 3 3 1 . . Detonate 1 | . . . . . . . . . . . . . . . . . . . . . . . . . . . . . . 1 . . . . . . Disrupt 11 | . . . 1 . . . . . . . . . . . . . . 2 1 . . . 2 . 1 . . . . 1 1 1 . 1 . . Operators 12 | . . . . . . . . 1 . . . . 1 . . . . 1 1 . . 1 1 . 1 . . . . 1 1 1 1 1 . . Fabricators 34 | . . . . . . . . 3 . . . . 1 . . . . 5 . . . . 4 . 7 . . . . 3 3 8 . . . . Report 2 | . . . . . . . . . . . . . . . . . . . . . . . 1 . . . . . . . . 1 . . . . Prioritize 14 | . . . . . . . . 1 . . . . 1 . . . . 2 . . . . 3 . 4 . . . . 1 1 1 . . . . Liberate 5 | . . . . . . . . 1 . . . . . . . . . 1 . . . . . . . . . . . . . 3 . . . . Fabnet 5 | . . . . . . . . . . . . . . . . . . 1 . . . . . . . . . . . . 1 3 . . . . Recompile 8 | . . . . . . . . 1 . . . . . . . . . 1 . . . . . . 3 . . . . 2 1 . . . . . Repair Stations . | . . . . . . . . . . . . . . . . . . . . . . . . . . . . . . . . . . . . . Recycling Units 17 | . 2 . 1 . . . 1 . . . . . . . . . . 5 . . . . 5 . 3 . . . . . . . . . . . Reject 7 | . . . . . . . . . . . . . . . . . . 3 . . . . 2 . 2 . . . . . . . . . . . Recyclers 2 | . . . . . . . . . . . . . . . . . . 1 . . . . 1 . . . . . . . . . . . . . Mask 4 | . . . . . . . . . . . . . . . . . . 1 . . . . 2 . 1 . . . . . . . . . . . Tunnel 4 | . 2 . 1 . . . 1 . . . . . . . . . . . . . . . . . . . . . . . . . . . . . Scanalyzers 1 | . . . . . . . . . . . . . . . . . . 1 . . . . . . . . . . . . . . . . . . Extract 1 | . . . . . . . . . . . . . . . . . . 1 . . . . . . . . . . . . . . . . . . Garrison Access . | . . . . . . . . . . . . . . . . . . . . . . . . . . . . . . . . . . . . . Data Cores Recovered 1 | . . . . . . . . . . . . . . . . . . . . . . . . . 1 . . . . . . . . . . . Used 1 | . . . . . . . . . . . . . . . . . . . . . . . . . 1 . . . . . . . . . . . Hacking Detections 146 | . 7 . 12 . . . 6 8 . . . . 13 . . . . 14 4 . . 5 12 . 17 . 1 . . 12 12 6 6 5 4 2 Full Trace Events 14 | . . . 1 . . . 1 2 . . . . 2 . . . . 2 . . . . 4 . 2 . . . . . . . . . . . Feedback Events 1 | . . . . . . . . 1 . . . . . . . . . . . . . . . . . . . . . . . . . . . . Corruption 1 | . . . . . . . . 1 . . . . . . . . . . . . . . . . . . . . . . . . . . . . Feedback Blocked . | . . . . . . . . . . . . . . . . . . . . . . . . . . . . . . . . . . . . . Robot Schematics Acquired 16 | . . . . . . . . . . . 3 . . . . 7 . . . . . . . . 1 . . . . 1 1 1 2 . . . Robots Built 5 | . . . . . . . . . . . . . . . . . . 5 . . . . . . . . . . . . . . . . . . Authchips . | . . . . . . . . . . . . . . . . . . . . . . . . . . . . . . . . . . . . . Time 118 | . . . . . . . . . . . . . . . . . . 118 . . . . . . . . . . . . . . . . . . Total Robot Build Rating 27 | . . . . . . . . . . . . . . . . . . 27 . . . . . . . . . . . . . . . . . . Part Schematics Acquired 80 | . . . . . . . 3 4 . . 17 . 4 . . 10 . 6 . . . 1 8 . 2 . . . . 3 15 1 5 . 1 . Parts Built 25 | . . . . . . . . 2 . . . . 4 . . . . 2 . . . . 6 . 6 . . . . 2 3 . . . . . Authchips 12 | . . . . . . . . 1 . . . . 2 . . . . 2 . . . . . . 3 . . . . 2 2 . . . . . Time 933 | . . . . . . . . 46 . . . . 146 . . . . 55 . . . . 267 . 238 . . . . 96 85 . . . . . Total Part Build Rating 177 | . . . . . . . . 10 . . . . 23 . . . . 13 . . . . 46 . 47 . . . . 12 26 . . . . . Parts Repaired 39 | . . . . . . . . . . . . . . . . . . 3 . . . . 5 . 9 . . . . 3 6 3 5 3 2 . Time 1599 | . . . . . . . . . . . . . . . . . . 92 . . . . 255 . 526 . . . . 102 175 93 151 145 60 . Parts Recycled . | . . . . . . . . . . . . . . . . . . . . . . . . . . . . . . . . . . . . . Recycled Matter . | . . . . . . . . . . . . . . . . . . . . . . . . . . . . . . . . . . . . . Retrieved Matter . | . . . . . . . . . . . . . . . . . . . . . . . . . . . . . . . . . . . . . Retrieved Components 26 | . 7 . . . . . . . . . . . . . . . . 2 . . . . 3 . 12 . . . . . . . . . . 2 Parts Scanalyzed 10 | . . . . . . . . 2 . . . . . . . . . 3 . . . . 2 . 2 . . . . 1 . . . . . . Part Schematics Acquired 9 | . . . . . . . . 2 . . . . . . . . . 3 . . . . 1 . 2 . . . . 1 . . . . . . Parts Damaged 1 | . . . . . . . . 1 . . . . . . . . . . . . . . . . . . . . . . . . . . . . Bothacking | -11 -10 -10 -9 -9 -9 -8 -8 -7 -7 -7 -7 -6 -6 -6 -6 -6 -5 -5 -5 -5 -5 -5 -4 -4 -4 -4 -4 -4 -3 -3 -3 -2 -2 -2 -1 -1 ------------ Run | Scr Mat Min Mat Min Exi Min Mat Fac Low Low Zio Pro Fac Low Low Dat Pro Fac Ext Cet Arc Hub Fac Was Fac Upp Upp War Pro Res Tes Res Qua Sec Acc Com Used RIF Installer . | . . . . . . . . . . . . . . . . . . . . . . . . . . . . . . . . . . . . . Robots Hacked 5 | . . . 1 . . . . . . . . . . . . . . . . . . . . . . . . 1 . . . 1 . 1 1 . Non-combat 1 | . . . 1 . . . . . . . . . . . . . . . . . . . . . . . . . . . . . . . . . Combat 4 | . . . . . . . . . . . . . . . . . . . . . . . . . . . . 1 . . . 1 . 1 1 . Robot Hacks Applied 1 | . . . 1 . . . . . . . . . . . . . . . . . . . . . . . . . . . . . . . . . no_distress 1 | . . . 1 . . . . . . . . . . . . . . . . . . . . . . . . . . . . . . . . . Relay Couplers Released . | . . . . . . . . . . . . . . . . . . . . . . . . . . . . . . . . . . . . . Fabnet Peak Effective % 7 | . . . . . . . . . . . . . . . . . . . . . . . 3 3 3 3 3 3 1 1 1 3 3 3 7 7 Autooverrided 4 | . . . . . . . . . . . . . . . . . . . . . . . . . . . . 1 . . . 1 . 1 1 . Robots Rewired 20 | . . . . . . . . . . . . . . . . . . . 15 . . . . . . . . 5 . . . . . . . . Allies Hacked 7 | . . . . . . . . . . . . . . . . . . . 4 . . . . . 2 . . . . 1 . . . . . . Hacks Repelled . | . . . . . . . . . . . . . . . . . . . . . . . . . . . . . . . . . . . . . Allies | -11 -10 -10 -9 -9 -9 -8 -8 -7 -7 -7 -7 -6 -6 -6 -6 -6 -5 -5 -5 -5 -5 -5 -4 -4 -4 -4 -4 -4 -3 -3 -3 -2 -2 -2 -1 -1 -------- Run | Scr Mat Min Mat Min Exi Min Mat Fac Low Low Zio Pro Fac Low Low Dat Pro Fac Ext Cet Arc Hub Fac Was Fac Upp Upp War Pro Res Tes Res Qua Sec Acc Com Total Allies 92 | . . . . 5 . . 1 2 . . . . 2 . . . 1 6 31 5 . 2 . 19 . . 2 6 . 3 1 1 2 2 1 . Largest Group 21 | . . . . 3 2 . 1 2 . . . . 2 . . . 1 4 21 15 14 11 . 19 18 . 2 5 4 3 1 1 1 1 1 . Highest-Rated Group 875 | . . . . 40 40 . 10 36 . . . . 36 . . . 96 134 676 875 875 657 . 702 669 . 58 282 226 138 45 58 26 69 30 . Highest-Rated Ally 159 | . . . . 31 31 . 10 26 . . . . 26 . . . 96 54 159 159 159 96 . 50 50 . 29 65 65 65 45 58 26 69 30 . Total Orders 16 | . . . . . . . . . . . . . . . . . . 2 9 . . 3 . . . . . . 2 . . . . . . . STAY 8 | . . . . . . . . . . . . . . . . . . 1 5 . . 1 . . . . . . 1 . . . . . . . FOLLOW 8 | . . . . . . . . . . . . . . . . . . 1 4 . . 2 . . . . . . 1 . . . . . . . Ally Attacks 719 | . . . . 31 . . . . . . . . . . . . 25 5 205 35 35 27 . 133 130 . . 33 21 29 . 2 . 2 6 . Total Damage 20197 | . . . . 295 . . . . . . . . . . . . 788 173 4831 818 1187 2781 . 4281 3032 . . 994 455 402 . 44 . 46 70 . Kills 110 | . . . . 4 . . . . . . . . . . . . 7 3 33 4 4 17 . 7 16 . . 6 4 3 . 1 . . 1 . Allies Corrupted 3 | . . . . . . . . . . . . . . . . . . . . . . 2 . . . . . . . . . . . 1 . . Allies Melted . | . . . . . . . . . . . . . . . . . . . . . . . . . . . . . . . . . . . . . Intel | -11 -10 -10 -9 -9 -9 -8 -8 -7 -7 -7 -7 -6 -6 -6 -6 -6 -5 -5 -5 -5 -5 -5 -4 -4 -4 -4 -4 -4 -3 -3 -3 -2 -2 -2 -1 -1 ------- Run | Scr Mat Min Mat Min Exi Min Mat Fac Low Low Zio Pro Fac Low Low Dat Pro Fac Ext Cet Arc Hub Fac Was Fac Upp Upp War Pro Res Tes Res Qua Sec Acc Com Robot Analysis Total 10 | . 1 . 1 . . . . . . . . . . . . . . 1 . . . . . . 1 . . . . . 1 . 4 1 . . Derelict Logs Recovered 12 | . . 1 . 1 . . . . . 2 2 1 . . 1 . 2 . . . . . . . . 1 1 . . . . . . . . . Drone Launches . | . . . . . . . . . . . . . . . . . . . . . . . . . . . . . . . . . . . . . Drone Recoveries . | . . . . . . . . . . . . . . . . . . . . . . . . . . . . . . . . . . . . . Exploration | -11 -10 -10 -9 -9 -9 -8 -8 -7 -7 -7 -7 -6 -6 -6 -6 -6 -5 -5 -5 -5 -5 -5 -4 -4 -4 -4 -4 -4 -3 -3 -3 -2 -2 -2 -1 -1 ------------- Run | Scr Mat Min Mat Min Exi Min Mat Fac Low Low Zio Pro Fac Low Low Dat Pro Fac Ext Cet Arc Hub Fac Was Fac Upp Upp War Pro Res Tes Res Qua Sec Acc Com Turns Passed 24915 | 77 1108 589 1486 554 164 80 1422 266 298 389 244 375 604 290 301 22 388 1128 1144 281 77 108 1766 203 2463 407 384 744 673 846 1461 895 772 1683 891 332 Spaces Moved 35883 | 66 611 357 750 452 144 61 929 565 984 1144 875 506 1556 967 828 76 1112 2810 1623 241 77 262 1931 291 2503 583 654 1095 1094 1229 1816 1479 1442 2556 1402 812 Core 6 | 4 . . 2 . . . . . . . . . . . . . . . . . . . . . . . . . . . . . . . . . Treads 8 | . . 3 . . . . 5 . . . . . . . . . . . . . . . . . . . . . . . . . . . . . Legs 9 | . . . 9 . . . . . . . . . . . . . . . . . . . . . . . . . . . . . . . . . Wheels 3709 | 62 611 354 739 452 144 61 924 . . . . . . . . . . . . . . . 362 . . . . . . . . . . . . . Hover 16703 | . . . . . . . . . . . . . . . . . . . . . . . 307 291 2503 583 654 1095 1094 1229 1816 1479 1442 2235 1317 658 Flight 14888 | . . . . . . . . 565 984 1144 875 506 1556 967 828 76 1112 2810 1623 241 77 262 1262 . . . . . . . . . . . . . Fastest Speed 26 | 50 95 145 105 110 110 110 101 26 26 26 26 26 26 26 26 26 26 26 30 30 30 27 30 56 52 53 53 48 48 48 44 33 33 33 33 36 Average Speed 46 | 90 147 153 125 110 110 110 112 26 26 26 26 26 26 28 28 28 28 29 30 34 30 30 49 61 62 53 53 49 48 49 49 37 35 33 34 36 Slowest Speed 800 | 95 155 240 800 110 110 110 400 26 26 26 26 26 26 29 29 29 29 102 30 103 30 34 131 63 63 53 53 53 48 145 144 40 40 36 144 138 Overloaded Moves 8 | . . . . . . . . . . . . . . . . . . . . . . 8 . . . . . . . . . . . . . . Propulsion Burnouts . | . . . . . . . . . . . . . . . . . . . . . . . . . . . . . . . . . . . . . Robots Hopped 44 | . . . . . . . . . 1 1 . . 6 . . . 1 18 8 . . 3 6 . . . . . . . . . . . . . Cave-ins Triggered 1 | . . . . . . . . . . . . . . . . . . . . . . . . . . . . . . . . 1 . . . . Teleports 2 | . . . . . . . . . . . . . . . . . . . . . . . . . . . . . . . . . . 1 1 . Microwarps 42 | . . . . . . . . . . . . . . . . . . . . . . . . . . . . . . . . . . 24 9 9 Exploration Rate (%) 64 | 4 97 60 73 86 54 20 54 16 93 92 83 67 36 94 67 68 93 56 86 70 73 31 41 93 58 75 75 87 95 28 95 40 94 84 32 28 Regions Visited 36 Branch Regions 24 Pre-discovered Areas 12 | . 2 . 1 1 1 . 1 . . 1 2 . . . . 1 . . . . . . . . . . 2 . . . . . . . . . Known Exits Taken 28 | . 1 . 1 . . . . 1 1 1 1 1 1 1 1 1 1 1 1 1 1 1 . . 1 1 1 1 1 1 1 1 1 1 1 . Unknown Exits Taken 6 | 1 . 1 . 1 1 1 1 . . . . . . . . . . . . . . . . . . . . . . . . . . . . . Scrap Searched 37 | . . 1 . 1 . 1 . . 10 6 4 1 . 4 1 . 2 . . . . . . . . 1 1 . 4 . . . . . . . Spaces Dug 505 | . . . 4 . . . 7 13 12 50 . 4 23 6 13 . 10 35 1 . . 2 47 . 40 3 2 3 24 17 31 32 21 59 29 17 Terrain Destroyed 953 | . . 39 13 13 . . 93 13 12 82 . 4 23 6 13 . 10 85 1 79 . 2 50 . 57 4 2 69 24 57 31 40 22 59 33 17 Melee 397 | . . . 4 . . . 7 10 12 10 . 4 22 6 11 . 10 33 1 . . 1 45 . 33 2 . 3 24 17 26 31 19 35 19 12 Projectile 58 | . . . . . . . 6 3 . . . . 1 . 2 . . 2 . . . 1 5 . 7 2 2 . . . 5 1 3 12 1 5 AOE 498 | . . 39 9 13 . . 80 . . 72 . . . . . . . 50 . 79 . . . . 17 . . 66 . 40 . 8 . 12 13 . Terrain Rammed . | . . . . . . . . . . . . . . . . . . . . . . . . . . . . . . . . . . . . . Walls Destroyed . | . . . . . . . . . . . . . . . . . . . . . . . . . . . . . . . . . . . . . Machines Disabled . | . . . . . . . . . . . . . . . . . . . . . . . . . . . . . . . . . . . . . Actions | -11 -10 -10 -9 -9 -9 -8 -8 -7 -7 -7 -7 -6 -6 -6 -6 -6 -5 -5 -5 -5 -5 -5 -4 -4 -4 -4 -4 -4 -3 -3 -3 -2 -2 -2 -1 -1 --------- Run | Scr Mat Min Mat Min Exi Min Mat Fac Low Low Zio Pro Fac Low Low Dat Pro Fac Ext Cet Arc Hub Fac Was Fac Upp Upp War Pro Res Tes Res Qua Sec Acc Com Total 41606 | 80 717 381 1081 490 147 72 1187 665 1001 1208 890 742 1708 972 868 75 1157 3011 2237 429 130 283 2545 316 3229 669 686 1285 1187 1378 2246 1672 1622 2900 1615 725 Wait 3793 | . 20 5 132 27 . 11 86 42 . 45 . 232 98 . 20 . 31 89 520 170 54 17 379 14 533 67 26 113 57 57 292 55 82 384 135 . Move 35243 | 65 610 356 749 451 143 60 928 564 981 1141 874 505 1543 966 827 75 1109 2773 1608 240 76 255 1919 290 2502 582 653 1094 1093 1228 1815 1478 1441 2258 1325 666 Hop 42 | . . . . . . . . . 1 1 . . 6 . . . 1 18 6 . . 3 6 . . . . . . . . . . . . . Pick Up 260 | 5 15 . 19 1 . . 26 8 1 . 6 . 9 . 1 . 1 19 1 2 . . 15 4 20 2 1 12 1 10 18 8 11 18 18 8 Fast Attach 167 | 7 4 . 12 . . . 6 3 . . . . 6 . . . . 9 2 1 . 2 25 2 18 . . 8 . 11 7 5 7 14 11 7 Attach 126 | 1 . 4 9 . . . 6 9 . . 1 . 2 . . . . 9 . 1 . . 10 . 6 2 1 4 . 5 4 4 3 22 16 7 Detach 60 | 2 . . 4 . . . 2 2 . . . . 2 . . . . 3 . . . 1 9 . 4 . 1 4 . 1 . 2 3 10 6 4 Swap 328 | . 12 6 23 2 4 . 29 9 . 2 3 1 4 . 4 . . 17 8 5 . 2 11 . 32 4 1 4 4 10 25 24 13 37 28 4 Drop 257 | . 7 . 14 . . . 28 14 2 . 5 . 10 . 1 . 1 23 4 3 . 1 19 6 16 2 . 19 2 9 13 11 14 15 8 10 Fire 286 | . 47 8 44 7 . 1 62 3 . 9 . . 1 . 4 . . 10 . 7 . 1 12 . 12 3 2 9 . . 6 2 4 21 6 5 Melee 903 | . 2 2 75 2 . . 14 11 16 10 1 4 27 6 11 . 14 41 16 . . 1 91 . 86 4 1 4 30 47 66 80 44 121 62 14 Ram . | . . . . . . . . . . . . . . . . . . . . . . . . . . . . . . . . . . . . . Kick . | . . . . . . . . . . . . . . . . . . . . . . . . . . . . . . . . . . . . . Crush . | . . . . . . . . . . . . . . . . . . . . . . . . . . . . . . . . . . . . . Escape Stasis 70 | . . . . . . . . . . . . . . . . . . . 18 . . . 49 . . . . . . . . 3 . . . . Rewire 68 | . . . . . . . . . . . . . . . . . . . 54 . . . . . . . . 14 . . . . . . . . Trap 3 | . . . . . . . . . . . . . . . . . . . . . . . . . . 3 . . . . . . . . . . Miscellaneous . | . . . . . . . . . . . . . . . . . . . . . . . . . . . . . . . . . . . . . Route ------- -11/Scrapyard -10/Materials (discovered 5 exits: *Mat x3 / *Min x2) -10/Mines -9/Materials (discovered 2 exits: *Mat / *Min) -9/Mines (discovered 3 exits: *Mat x2 / *Exi) -9/Exiles (discovered 2 exits: [*Min x2]) -8/Mines -8/Materials -7/Factory (discovered 4 exits: Sto x2 / *Low x2) -7/Lower Caves -7/Lower Caves (discovered 2 exits: *Fac / *Zio) -7/Zion (discovered 2 exits: Dee / *Pro) -6/Proximity Caves -6/Factory (discovered 3 exits: *Fac / *Low x2) -6/Lower Caves (discovered 2 exits: *Low / *Dat) -6/Lower Caves -6/Data Miner -5/Proximity Caves -5/Factory (discovered 7 exits: *Fac x3 / *Upp x2 / *Ext x2) -5/Extension (discovered 2 exits: *Fac / *Cet) -5/Cetus -5/Archives -5/Hub_04(d) -4/Factory (discovered 6 exits: *Res x3 / Upp x2 / Arm) -4/Waste -4/Factory (discovered 4 exits: *Res / *Upp x2 / Arm) -4/Upper Caves -4/Upper Caves (discovered 2 exits: *Res / *War) -4/Warlord -3/Proximity Caves -3/Research (discovered 3 exits: *Res / *Tes x2) -3/Testing -2/Research (discovered 2 exits: *Qua x2) -2/Quarantine (discovered 2 exits: *Acc / *Sec) -2/Section 7 -1/Access -1/Command To Epsilon Eridani History --------- Turn | Location | Event 11 | -11/Scrapyard | Discovered new exit (range 15) 78 | -11/Scrapyard | Entered Materials 272 | -10/Materials | Discovered new exit (range 15) 276 | -10/Materials | Discovered new exit (range 9) 305 | -10/Materials | Build established: Mutant 500 | -10/Materials | Discovered new exit (range 12) 603 | -10/Materials | Identified exit to Mines 648 | -10/Materials | Discovered new exit (range 16) 928 | -10/Materials | Discovered new exit (range 10) 1019 | -10/Materials | Core integrity fell below 50% 1186 | -10/Materials | Entered Mines 1399 | -10/Mines | Learned Materials stockpile data 1572 | -10/Mines | Assembled infested the area 1577 | -10/Mines | Assisted by a Guerilla fighting off Assembled 1620 | -10/Mines | Core integrity fell below 20% 1657 | -10/Mines | Destroyed 8 combat bots 1660 | -10/Mines | Lost 3 parts (1p1n1u) 1769 | -10/Mines | Discovered new exit (range 4) 1775 | -10/Mines | Entered Materials 1775 | -9/Materials | Evolved 2 slots: Propulsion x1, Utility x1 1869 | -9/Materials | Identified exit to Mines 2623 | -9/Materials | Discovered new exit (range 10) 3033 | -9/Materials | Core integrity fell below 50% 3261 | -9/Materials | Entered Mines 3262 | -9/Mines | Learned location of Storage (-7) 3319 | -9/Mines | Assisted by bots powering up and referring to "LRC-V3" 3418 | -9/Mines | Build established: Scavenger-Mutant 3446 | -9/Mines | Discovered new exit (range 3) 3771 | -9/Mines | Discovered new exit (range 12) 3804 | -9/Mines | Deemed a non-threat by the Exiles lab entrance 3805 | -9/Mines | Discovered new exit (range 5) 3815 | -9/Mines | Entered Exiles 3815 | -9/Exiles | Accompanied by 2 allies 3835 | -9/Exiles | Discovered new exit (range 15) 3845 | -9/Exiles | Led the pair of lost Derelicts to a safe place 3848 | -9/Exiles | Met 8R-AWN 3864 | -9/Exiles | Met EX-HEX 3910 | -9/Exiles | Met EX-DEC 3928 | -9/Exiles | Learned location of Zion (-7) 3967 | -9/Exiles | Discovered new exit (range 10) 3979 | -9/Exiles | Entered Mines 4035 | -8/Mines | Discovered new exit (range 11) 4059 | -8/Mines | Entered Materials 4059 | -8/Materials | Evolved 2 slots: Propulsion x1, Utility x1 4764 | -8/Materials | Lost 3 parts (1n2u) 4801 | -8/Materials | Discovered new exit (range 20) 5118 | -8/Materials | Lost 4 parts (3n1u) 5481 | -8/Materials | Entered Factory 5481 | -7/Factory | Evolved 2 slots: Utility x2 5482 | -7/Factory | Identified exit to Storage 5551 | -7/Factory | Identified exit to Lower Caves 5668 | -7/Factory | Fabricated Imp. Hacking Suite (x1) 5693 | -7/Factory | Fabricated Imp. System Shield (x1) 5747 | -7/Factory | Entered Lower Caves 5752 | -7/Lower Caves | Encountered a Warlord checkpoint 5778 | -7/Lower Caves | Build established: Hacker-Sprinter 5984 | -7/Lower Caves | Discovered new exit (range 10) 5988 | -7/Lower Caves | Identified exit to Lower Caves 6021 | -7/Lower Caves | Acquired the password to a Derelict Tinkerer's latest research 6027 | -7/Lower Caves | Found Prototype Special Weapon 6045 | -7/Lower Caves | Entered another Lower Caves area 6045 | -7/Lower Caves | Discovered new exit (range 10) 6047 | -7/Lower Caves | Identified exit to Factory 6050 | -7/Lower Caves | Encountered a Warlord checkpoint 6105 | -7/Lower Caves | Destroyed 10 combat bots 6241 | -7/Lower Caves | Learned Factory emergency access door positions 6313 | -7/Lower Caves | Learned location of Extension (-5) 6386 | -7/Lower Caves | Discovered new exit (range 10) 6393 | -7/Lower Caves | Identified exit to Zion 6434 | -7/Lower Caves | Entered Zion 6447 | -7/Zion | System corruption cleaned by Quarantine Array 6462 | -7/Zion | Learned location of Warlord (-4) 6469 | -7/Zion | Discovered new exit (range 12) 6472 | -7/Zion | Identified exit to Proximity Caves 6493 | -7/Zion | Found CR-A16's Pointy Stick 6502 | -7/Zion | Acquired unknown access codes intercepted by a Zionite 6526 | -7/Zion | Learned Factory stockpile data 6590 | -7/Zion | Given the Hacking Drone Bay 6601 | -7/Zion | Found Prototype Special Weapon 6602 | -7/Zion | Identified RU-N14's Throwing Claymores 6618 | -7/Zion | Identified exit to Deep Caves 6629 | -7/Zion | Visited the Megawrench Repair Shop 6629 | -7/Zion | Megawrench repaired 5 parts 6678 | -7/Zion | Entered Proximity Caves 6852 | -6/Proximity Caves | Received a Behemoth hack from an annoying Tinkerer 7044 | -6/Proximity Caves | Discovered exit to Factory (range 11) 7053 | -6/Proximity Caves | Entered Factory 7053 | -6/Factory | Evolved 2 slots: Utility x2 7082 | -6/Factory | Identified exit to Lower Caves 7123 | -6/Factory | Spotted B-75 Beast 7182 | -6/Factory | Fabricated Adv. System Shield? 7228 | -6/Factory | Discovered new exit (range 15) 7267 | -6/Factory | Fabricated Adv. Hacking Suite? 7400 | -6/Factory | Fabricated Adv. Sensor Array (x1) 7483 | -6/Factory | Fabricated Adv. Hacking Suite (x1) 7657 | -6/Factory | Entered Lower Caves 7741 | -6/Lower Caves | A Derelict revealed a hidden shortcut to meet someone special 7775 | -6/Lower Caves | Discovered new exit (range 12) 7778 | -6/Lower Caves | Identified exit to Lower Caves 7794 | -6/Lower Caves | Encountered a Warlord checkpoint 7947 | -6/Lower Caves | Entered another Lower Caves area 7949 | -6/Lower Caves | Attracted the attention of an 0b10 checkpoint 8019 | -6/Lower Caves | Learned Factory emergency access door positions 8056 | -6/Lower Caves | Discovered new exit (range 10) 8248 | -6/Lower Caves | Identified exit to Data Miner 8248 | -6/Lower Caves | Entered Data Miner 8248 | -6/Data Miner | Discovered new exit (range 6) 8250 | -6/Data Miner | Identified exit to Proximity Caves 8254 | -6/Data Miner | Met Data Miner 8259 | -6/Data Miner | Learned location of Section 7 (-2) 8259 | -6/Data Miner | Acquired the access code to Warlord's prototype stash 8264 | -6/Data Miner | Received God Mode back door access code from Data Miner 8270 | -6/Data Miner | Entered Proximity Caves 8282 | -5/Proximity Caves | Escorted by Enhanced Grunt 8332 | -5/Proximity Caves | Spotted B-75 Beast 8376 | -5/Proximity Caves | Learned location of 1 exit from Factory 8409 | -5/Proximity Caves | Learned Factory stockpile data 8557 | -5/Proximity Caves | Discovered new exit (range 15) 8657 | -5/Proximity Caves | Identified exit to Factory 8658 | -5/Proximity Caves | Entered Factory 8658 | -5/Factory | Evolved 2 slots: Utility x2 8659 | -5/Factory | Identified exit to Factory 8733 | -5/Factory | Identified exit to Upper Caves 8733 | -5/Factory | Identified exit to Extension 8763 | -5/Factory | Incoming investigation squad redirected 8768 | -5/Factory | Found Prototype Processor 8828 | -5/Factory | Identified Exp. Targeting Computer 8829 | -5/Factory | Fabricated Adv. Hacking Suite? 8829 | -5/Factory | Identified Molecular Deconstructor 8971 | -5/Factory | Discovered exit to Factory (range 16) 8987 | -5/Factory | Build established: Wizard-Sprinter 9192 | -5/Factory | Repaired Imp. VTOL Module? 9232 | -5/Factory | Repaired Field Propulsion Array? 9412 | -5/Factory | Discovered exit to Factory (range 14) 9516 | -5/Factory | Fabricated G-50 Soldier? 9536 | -5/Factory | Incoming investigation squad redirected 9690 | -5/Factory | Fabricated Lrn. Sensor Array? 9738 | -5/Factory | Fabricated P-70 Sage? 9746 | -5/Factory | Repaired Lrn. Sensor Array? 9786 | -5/Factory | Entered Extension 9786 | -5/Extension | Accompanied by 3 allies 9801 | -5/Extension | Rescued a captive Derelict 9802 | -5/Extension | Rescued a captive Derelict 9932 | -5/Extension | Rescued a captive Derelict 9957 | -5/Extension | Sage 6a assimilated hostile Y-64 Sentinel 9958 | -5/Extension | Sage 6a assimilated hostile Y-64 Sentinel 9983 | -5/Extension | Rescued a captive Derelict 10241 | -5/Extension | Spotted B-75 Beast 10244 | -5/Extension | Spotted B-75 Beast 10262 | -5/Extension | Allies destroyed B-75 Beast 10269 | -5/Extension | Destroyed B-75 Beast 10328 | -5/Extension | Rescued a captive Derelict 10412 | -5/Extension | Rescued a captive Derelict 10412 | -5/Extension | Rescued a captive Derelict 10527 | -5/Extension | Rescued a captive Derelict 10531 | -5/Extension | Rescued a captive Derelict 10613 | -5/Extension | Rescued a captive Derelict 10614 | -5/Extension | Rescued a captive Derelict 10757 | -5/Extension | Rescued A7 10775 | -5/Extension | Discovered exit to Factory (range 10) 10775 | -5/Extension | Discovered new exit (range 6) 10782 | -5/Extension | Identified exit to Cetus 10930 | -5/Extension | Entered Cetus 10930 | -5/Cetus | Accompanied by 15 allies (A7) 10935 | -5/Cetus | Acquired a Cetus Manufacturing Module code from A7 10936 | -5/Cetus | Spotted Cetus Guard 10936 | -5/Cetus | Spotted Cetus Guard 10948 | -5/Cetus | Allies destroyed Cetus Guard 10948 | -5/Cetus | Spotted Cetus Guard 10951 | -5/Cetus | Spotted Cetus Guard 10953 | -5/Cetus | Allies destroyed Cetus Guard 10963 | -5/Cetus | Allies destroyed Cetus Guard 11025 | -5/Cetus | Escorted A7 to Cetus Mainframe 11039 | -5/Cetus | Started Cetus Manufacturing Module 11042 | -5/Cetus | Discovered new exit (range 16) 11064 | -5/Cetus | Manufactured an Enhanced Grunt 11089 | -5/Cetus | Manufactured an Enhanced Grunt 11114 | -5/Cetus | Manufactured an Enhanced Grunt 11139 | -5/Cetus | Manufactured an Enhanced Grunt 11164 | -5/Cetus | Manufactured an Enhanced Grunt 11174 | -5/Cetus | Identified exit to Archives 11211 | -5/Cetus | Entered Archives 11211 | -5/Archives | Accompanied by 14 allies (A7) 11216 | -5/Archives | Received a hacking code to weaken MAIN.C 11251 | -5/Archives | Discovered new exit (range 16) 11259 | -5/Archives | Identified exit to Hub_04(d) 11288 | -5/Archives | Entered Hub_04(d) 11288 | -5/Hub_04(d) | Accompanied by 10 allies 11321 | -5/Hub_04(d) | Discovered exit to Factory (range 9) 11377 | -5/Hub_04(d) | Network Hub disabled 11382 | -5/Hub_04(d) | Spotted Lightning 11382 | -5/Hub_04(d) | Spotted Lightning 11383 | -5/Hub_04(d) | Spotted Lightning 11385 | -5/Hub_04(d) | Spotted Lightning 11385 | -5/Hub_04(d) | Spotted Lightning 11391 | -5/Hub_04(d) | Spotted Lightning 11396 | -5/Hub_04(d) | Entered Factory 11396 | -4/Factory | Evolved 2 slots: Power x1, Propulsion x1 11424 | -4/Factory | Lost 3 parts (1p1n1w) 11445 | -4/Factory | Repaired Field Propulsion Array 11501 | -4/Factory | Repaired Centrium Medium Armor Plating 11544 | -4/Factory | Identified exit to Upper Caves 11544 | -4/Factory | Identified exit to Armory 11563 | -4/Factory | Discovered new exit (range 15) 11729 | -4/Factory | Discovered new exit (range 16) 11734 | -4/Factory | Identified exit to Research 11794 | -4/Factory | Fabricated Exp. Hacking Suite (x1) 11833 | -4/Factory | Fabricated Exp. System Shield (x1) 12076 | -4/Factory | Found Prototype Processor 12146 | -4/Factory | Search patrols dispatched 12240 | -4/Factory | Repaired Thunder Hammer 12242 | -4/Factory | Incoming investigation squad redirected 12323 | -4/Factory | Identified Exp. Signal Interpreter 12393 | -4/Factory | System corruption reached 10% 12589 | -4/Factory | Repaired Broken Mni. Fusion Reactor? 12620 | -4/Factory | Repaired Adv. Weight Redist. System 12691 | -4/Factory | Discovered exit to Research (range 12) 12753 | -4/Factory | Lost 3 parts (1p1n1u) 12869 | -4/Factory | Fabricated Cmb. Antigrav System? 13010 | -4/Factory | Build established: Hacker-Mutant 13039 | -4/Factory | Incoming investigation squad redirected 13079 | -4/Factory | Fabricated Cmb. Antigrav System? 13162 | -4/Factory | Sucked down chute 13162 | -4/Factory | Entered Waste 13185 | -4/Waste | Spotted C-40 Crusher 13205 | -4/Waste | Warlord forces began an assault 13236 | -4/Waste | Spotted C-40 Crusher 13238 | -4/Waste | Spotted C-40 Crusher 13239 | -4/Waste | Allies destroyed C-40 Crusher 13246 | -4/Waste | Allies destroyed C-40 Crusher 13250 | -4/Waste | Spotted C-40 Crusher 13257 | -4/Waste | Allies destroyed C-40 Crusher 13259 | -4/Waste | Spotted C-40 Crusher 13310 | -4/Waste | Discovered new exit (range 16) 13319 | -4/Waste | Identified exit to Factory 13365 | -4/Waste | Entered Factory 13365 | -4/Factory | Accompanied by 18 allies 13490 | -4/Factory | Found Exp. Hacking Suite 13699 | -4/Factory | Repaired Cmb. Linear Gravjet? 13719 | -4/Factory | Discovered exit to Research (range 4) 13784 | -4/Factory | Repaired Cmb. Linear Gravjet? 13964 | -4/Factory | Repaired Centrium Medium Armor Plating 14217 | -4/Factory | Repaired Cmb. Linear Gravjet 14268 | -4/Factory | Repaired Mni. Fusion Reactor 14308 | -4/Factory | Build established: Wizard-Mutant 14333 | -4/Factory | Fabricated Exp. System Shield? 14459 | -4/Factory | Spotted B-86 Titan 14465 | -4/Factory | Revealed the true nature of CR-A16's Pointy Stick 14469 | -4/Factory | Destroyed B-86 Titan 14489 | -4/Factory | Incoming investigation squad redirected 14572 | -4/Factory | Fabricated Exp. EM Disruption Field? 14638 | -4/Factory | Spotted B-86 Titan 14692 | -4/Factory | Build established: Hacker-Mutant 14773 | -4/Factory | Lost 3 parts (3u) 14822 | -4/Factory | Repaired Thunder Hammer 14894 | -4/Factory | Repaired Centrium Medium Armor Plating 14945 | -4/Factory | Repaired Mni. Fusion Reactor 15247 | -4/Factory | Fabricated Exp. System Shield? 15648 | -4/Factory | Fabricated Lrn. Sensor Array? 15691 | -4/Factory | Fabricated Cmb. Linear Gravjet (x2) 15797 | -4/Factory | Repaired Cmb. Linear Gravjet? 15828 | -4/Factory | Entered Upper Caves 15828 | -4/Upper Caves | Spotted B-86 Titan 15903 | -4/Upper Caves | Encountered a Warlord checkpoint 15966 | -4/Upper Caves | Learned Research terminal intel 16230 | -4/Upper Caves | Discovered new exit (range 6) 16233 | -4/Upper Caves | Identified exit to Upper Caves 16235 | -4/Upper Caves | Entered another Upper Caves area 16247 | -4/Upper Caves | Discovered exit to Research (range 6) 16438 | -4/Upper Caves | A Commander dispatched an escort 16441 | -4/Upper Caves | Learned Factory stockpile data 16441 | -4/Upper Caves | Learned Extension terminal intel 16526 | -4/Upper Caves | Found Alien Artifact 16542 | -4/Upper Caves | Discovered new exit (range 3) 16543 | -4/Upper Caves | Identified exit to Warlord 16619 | -4/Upper Caves | Entered Warlord 16619 | -4/Warlord | Accompanied by 2 allies 16620 | -4/Warlord | Commander's escort returned to base 16620 | -4/Warlord | Commander's escort returned to base 16637 | -4/Warlord | System corruption cleaned by Quarantine Array 16764 | -4/Warlord | Found Prototype Special Weapon 16816 | -4/Warlord | Identified RU-N14's Throwing Claymores v3 16831 | -4/Warlord | Found Prototype Reactor 16835 | -4/Warlord | Found Prototype Device 16835 | -4/Warlord | Identified System Purifier 16862 | -4/Warlord | Visited the Vortex Lab 16863 | -4/Warlord | Found Prototype Energy Gun 16863 | -4/Warlord | Identified Vortex Rail 16867 | -4/Warlord | Found Prototype Energy Gun 16867 | -4/Warlord | Identified Vortex Rifle 16870 | -4/Warlord | Found Vortex Rifle 16883 | -4/Warlord | Warlord's base attacked by MAIN.C 16964 | -4/Warlord | Found RU-N14's Throwing Claymores v3 16965 | -4/Warlord | Found RU-N14's Throwing Claymores v3 16967 | -4/Warlord | Found RU-N14's Throwing Claymores v3 17066 | -4/Warlord | Found RU-N14's Throwing Claymores v3 17068 | -4/Warlord | Found RU-N14's Throwing Claymores v3 17233 | -4/Warlord | Warlord forces counterattacked 17265 | -4/Warlord | Spotted Executioner 17285 | -4/Warlord | Spotted Executioner 17289 | -4/Warlord | Destroyed Executioner 17309 | -4/Warlord | Spotted Striker 17340 | -4/Warlord | Discovered new exit (range 12) 17345 | -4/Warlord | Identified exit to Proximity Caves 17352 | -4/Warlord | Destroyed 9 combat bots 17363 | -4/Warlord | Entered Proximity Caves 17363 | -3/Proximity Caves | Accompanied by 4 allies 17514 | -3/Proximity Caves | Attracted the attention of an 0b10 checkpoint 18008 | -3/Proximity Caves | Discovered exit to Research (range 13) 18036 | -3/Proximity Caves | Entered Research 18036 | -3/Research | Accompanied by 2 allies 18036 | -3/Research | Evolved 2 slots: Utility x2 18037 | -3/Research | Loaded intel: 23 terminal locations 18054 | -3/Research | Identified exit to Testing 18167 | -3/Research | Fabricated Exp. Utility Shielding? 18236 | -3/Research | Identified Vortex Chain Reactor 18315 | -3/Research | Discovered new exit (range 14) 18337 | -3/Research | Repaired Lgt. Quantum Reactor 18362 | -3/Research | Identified exit to Research 18366 | -3/Research | Repaired Cmb. Linear Gravjet? 18508 | -3/Research | Fabricated Exp. Hacking Suite? 18526 | -3/Research | P-80 Master assimilated allied Archangel 7a 18613 | -3/Research | Allied Derelicts emerged from ambush trap array 18654 | -3/Research | Repaired Centrium Medium Armor Plating 18712 | -3/Research | Identified Dimensional Node Initializer 18824 | -3/Research | Central database locked down 18869 | -3/Research | Build established: Wizard-Mutant 18882 | -3/Research | Entered Testing 18945 | -3/Testing | Discovered exit to Research (range 16) 18990 | -3/Testing | Fabricated Cmb. Linear Gravjet (x2) 19085 | -3/Testing | Found Prototype Processor 19112 | -3/Testing | Identified Exp. Target Analyzer 19137 | -3/Testing | Repaired Mni. Fusion Reactor? 19145 | -3/Testing | Found Prototype Launcher 19166 | -3/Testing | Found Prototype Launcher 19167 | -3/Testing | Identified Com. Tesla Bomb Launcher 19169 | -3/Testing | Identified Z-bomb Delivery System 19329 | -3/Testing | Found Prototype Device 19330 | -3/Testing | Identified Imp. Particle Accelerator 19438 | -3/Testing | Found Prototype Device 19458 | -3/Testing | Identified AEGIS Remote Shield 19894 | -3/Testing | Fabricated Nanosword? 20002 | -3/Testing | Found Prototype Hackware 20016 | -3/Testing | Identified Ghost Barrier 20058 | -3/Testing | Repaired Graviton Reactor 20080 | -3/Testing | Repaired Adv. Reaction Control System 20122 | -3/Testing | Repaired Centrium Medium Armor Plating 20149 | -3/Testing | Repaired Exp. Utility Shielding 20175 | -3/Testing | Repaired Cmb. Linear Gravjet 20343 | -3/Testing | Entered Research 20343 | -2/Research | Evolved 2 slots: Propulsion x2 20439 | -2/Research | Found Exp. ECM Suite 20446 | -2/Research | Identified exit to Quarantine 20490 | -2/Research | Crushed by falling debris 20614 | -2/Research | Repaired Nanosword? 20898 | -2/Research | Repaired Mni. Fusion Reactor 20924 | -2/Research | Repaired Cmb. Linear Gravjet? 20997 | -2/Research | Found Prototype Device 20999 | -2/Research | Identified Exp. Transmission Jammer 21083 | -2/Research | Spotted B-90 Cyclops 21089 | -2/Research | Destroyed B-90 Cyclops 21140 | -2/Research | Garrison activated, responded to threat 21238 | -2/Research | Entered Quarantine 21247 | -2/Quarantine | Found Alien Artifact 21280 | -2/Quarantine | Found Alien Artifact 21280 | -2/Quarantine | Identified Phase Armor 21328 | -2/Quarantine | Found Prototype Processor 21336 | -2/Quarantine | Identified Exp. Core Analyzer 21349 | -2/Quarantine | Repaired Exp. Utility Shielding? 21351 | -2/Quarantine | Repaired Graviton Reactor 21382 | -2/Quarantine | Repaired Thunder Hammer 21400 | -2/Quarantine | Repaired Cmb. Linear Gravjet 21434 | -2/Quarantine | Identified exit to Access 21467 | -2/Quarantine | Identified Subatomic Replicator 21675 | -2/Quarantine | Repaired System Purifier? 21744 | -2/Quarantine | Found Alien Artifact 21755 | -2/Quarantine | Identified Core Reset Matrix 21815 | -2/Quarantine | Found Alien Artifact 21860 | -2/Quarantine | Scanned by Researcher 21940 | -2/Quarantine | Identified Terrabomb 21970 | -2/Quarantine | Found Alien Slashing Weapon 21970 | -2/Quarantine | Identified Sigix Broadsword 21986 | -2/Quarantine | Spotted Fortress 22008 | -2/Quarantine | Discovered new exit (range 6) 22010 | -2/Quarantine | Identified exit to Section 7 22010 | -2/Quarantine | Entered Section 7 22060 | -2/Section 7 | Found Alien Artifact 22157 | -2/Section 7 | Repaired Centrium Medium Armor Plating? 22354 | -2/Section 7 | Identified Integrated Reactor 22354 | -2/Section 7 | Installed Integrated Reactor, increased core energy generation (+10) 22408 | -2/Section 7 | Repaired Cmb. Linear Gravjet 22546 | -2/Section 7 | Found Alien Artifact 22568 | -2/Section 7 | Spotted S7 Guard 22704 | -2/Section 7 | Found Alien Artifact 22704 | -2/Section 7 | Identified Microwarp Drive 22723 | -2/Section 7 | Found Alien Artifact 22749 | -2/Section 7 | Identified Integrated Dissipator 22749 | -2/Section 7 | Identified Integrated Mediator 22749 | -2/Section 7 | Installed Integrated Mediator, increased core attachment efficiency. 22751 | -2/Section 7 | Installed Integrated Dissipator, increased core heat dissipation (+20) 22804 | -2/Section 7 | Search patrols dispatched 22829 | -2/Section 7 | Build established: Wizard-Sprinter 23272 | -2/Section 7 | Repaired Exp. EM Disruption Field? 23289 | -2/Section 7 | Search patrols dispatched 23310 | -2/Section 7 | Found Alien Artifact 23334 | -2/Section 7 | Spotted B-99 Colossus 23338 | -2/Section 7 | Spotted Alpha 7 23343 | -2/Section 7 | Spotted Alpha 7 23349 | -2/Section 7 | Spotted Executioner 23349 | -2/Section 7 | Spotted Executioner 23376 | -2/Section 7 | Spotted Striker 23376 | -2/Section 7 | Spotted Striker 23379 | -2/Section 7 | Spotted Executioner 23444 | -2/Section 7 | Found Alien Artifact 23450 | -2/Section 7 | Initialized slip node 23457 | -2/Section 7 | Found Alien Artifact 23459 | -2/Section 7 | Found Alien Artifact 23461 | -2/Section 7 | Core integrity fell below 50% 23472 | -2/Section 7 | Found Integrated Dissipator 23472 | -2/Section 7 | Installed Integrated Dissipator, increased core heat dissipation (+20) 23474 | -2/Section 7 | Found Integrated Dissipator 23474 | -2/Section 7 | Installed Integrated Dissipator, increased core heat dissipation (+20) 23502 | -2/Section 7 | Found Alien Artifact 23505 | -2/Section 7 | Found Alien Artifact 23510 | -2/Section 7 | Search patrols dispatched 23544 | -2/Section 7 | System corruption reached 10% 23559 | -2/Section 7 | Identified Transdimensional Reconstructor (x2) 23559 | -2/Section 7 | Warped through subspace 23593 | -2/Section 7 | Core integrity fell below 20% 23634 | -2/Section 7 | Identified Hpw. Transdimensional Reconstructor 23634 | -2/Section 7 | Identified Navigation Efficiency Matrix 23634 | -2/Section 7 | Identified LRC Storage 23634 | -2/Section 7 | Identified LRC Boosters 23658 | -2/Section 7 | Installed LRC Storage, increased inventory capacity (+2) 23693 | -2/Section 7 | Entered Access 23693 | -1/Access | Evolved 2 slots: Weapon x2 23696 | -1/Access | Used Subatomic Replicator to replicate LRC Boosters 23697 | -1/Access | Installed LRC Boosters, increased mass support (+10) 23699 | -1/Access | Installed LRC Boosters, increased mass support (+10) 23720 | -1/Access | Identified exit to Command 23895 | -1/Access | Found Exp. Actuator Array 23907 | -1/Access | Incoming investigation squad redirected 23943 | -1/Access | Search patrols dispatched 23976 | -1/Access | Repaired Cmb. Linear Gravjet? 24009 | -1/Access | Local machine network offline 24028 | -1/Access | Repaired Centrium Medium Armor Plating 24074 | -1/Access | Lost 3 parts (1n2u) 24155 | -1/Access | Warped through subspace 24193 | -1/Access | Search patrols dispatched 24275 | -1/Access | Found Antimissile System 24342 | -1/Access | Build established: Hacker-Mutant 24443 | -1/Access | Search patrols dispatched 24575 | -1/Access | Spotted B-99 Colossus 24576 | -1/Access | Spotted B-99 Colossus 24584 | -1/Access | Entered Command 24611 | -1/Command | Lost 6 parts (2p2u2w) 24773 | -1/Command | Spotted Executioner 24773 | -1/Command | Spotted Executioner 24773 | -1/Command | Spotted Striker 24773 | -1/Command | Spotted Alpha 7 24773 | -1/Command | Spotted Executioner 24773 | -1/Command | Spotted Executioner 24773 | -1/Command | Spotted Striker 24773 | -1/Command | Spotted Alpha 7 24830 | -1/Command | Found Enh. Force Lance 24834 | -1/Command | Search patrols dispatched 24898 | -1/Command | Spotted B-99 Colossus 24912 | -1/Command | Spotted B-99 Colossus 24912 | -1/Command | Spotted B-99 Colossus 24913 | -1/Command | Discovered new exit (range 4) 24914 | -1/Command | Core integrity fell below 50% 24915 | -1/Command | Identified exit to Surface 24916 | *** | Escaped! Last Messages --------------- 24912_ Microwarped (distance 19). 24912_ Penetrated by Slug. 24912_ Access Shell breached. 24913_ Cmb. Linear Gravjet destroyed. 24913_ Penetrated by Slug. 24913_ Slug penetrates Wall. 24913_ Imp. Cloaking Device destroyed. 24913_ Knocked back. 24913_ Triggered Stasis Trap. 24913_ A bubble of rippling energy engulfs the area. 24913_ Field strength at 93. 24913_ Microwarp Drive destroyed. 24913_ Knocked back. 24913_ Penetrated by Slug. 24913_ Imp. Antigrav System destroyed. 24913_ Slug penetrates Wall. 24913_ Slug penetrates B-99 Colossus. 24913_ Penetrated by Slug. 24913_ EXIT=FOUND 24915_ EXIT=IDENTIFIED: SURFACE Map ----- +----------------------------------------------------+ | ## #####+#+##########=##### #??? #??????? | | ?# # # # #### [ #??????? | | ??# # # + + #??????? | | ??# # # # # #??????? | | ???# # # # # #??????? | | ???# # # ! + #? #??????? | | ???# # # # #? #??????? | | ???# " / # #?? #??????? | | ???# ##########+######## + #?? #??????? | | #### # # [ ## ! # ######??????? | | # ""##### # #??????? | | + "##???# + #??????? | | ## ###### # ! ##????####=# #??????? | | ?# #?????# ## ! #????????# # ######## | | ?# #?????? ## #????????#!#?[ # | | ?# #??????? ## #????????# #? # | | ?# #??????? ###"##########????????# #?? # | | ?# #????????#?# #?????????????????# #?? # | | ?# #??????????###?????????????????# #??? # | | ?# #??????????????????????????????# ########+#### | | ?# #??????????????????????????????# | | ?# #??????????????????????????????######### | | ?? #??????????????????????????????????????# | | ?? #??????????????????""""""???#??????????# | | ?? #??????????????????" "?? #??????????# | | ?? #??????????????????" @" "? #??????????# | | ?? ???????????????????" "" " #?########?# | | ?? ???????????????????" " #?# #?# | | ?? ???????????????# " "" #?# #?# | | ?? ?????? ???????# ^%% #?# #?# | | ?? ?????? ?? ??# BB#?# ### | | ?? #????? ??# % BB#?# + | | ?# /????? ??#### E ####?# ### | | ?# #????? #???#E #???# #?##+#### | | ## #????# #???## ##???# #? ?# | | #????# #???? ????# ## # | | #????# #???##7 ##???# ## # | | #????# #???? ????# ## # | | !!###??# #???## #????#[ ######### | | ! #??# #???# ????# #???????? | | ???# ""T #????# #????####+####??????? | | "##### """" #????# #???????# #??????? | | # # """" #????##++++##???????# #??????? | | % # """ #?????# #???????## #??????? | | / #?????# ######### #??????? | | ##### # ##????# #+####???? | | ????#############"##???# ####### # #???? | | ????????????######"##### #?????# # #???? | | ????????????+ #?????# # #???? | | ????????????#################?????# # ] #???? | +----------------------------------------------------+ Best States ------------- Heat Dissipation 202 Coolant Potential 100 Energy Generation 80 Energy Capacity 700 Matter Stores 300 Matter Capacity 300 Sight Range 18 Robot Scan Range 18 Terrain Scan Range 14 Terrain Scan Density 10 ECM Strength 3 Jamming Range 16 Cloak Strength 3 Power Amplification 30 Additional Mass Support 9 Armor Coverage 825 Resistance: EM 75 Utility Shielding 90 Weapon Shielding 33 Melee Speed Boost 20 Phase Shifting 10 Evasion (%) 70 Targeting Accuracy 8 Melee Accuracy 16 Target Analysis 8 Recoil Reduction 2 Energy Filtering 50 Offensive Hacking 58 Defensive Hacking 36 Authchip Count 3 Item Schematics ----------------- Hacking Suite | -8/Materials | Hacked Huge Storage Unit | -8/Materials | Hacked Imp. Terrain Scanner | -8/Materials | Hacked Imp. Hacking Suite | -7/Factory | Hacked Imp. System Shield | -7/Factory | Hacked Mni. Grenade Launcher | -7/Factory | Scanalyzed Imp. VTOL Module | -7/Factory | Scanalyzed Arc Thrower | -7/Zion | Free Battle Rifle | -7/Zion | Free Flamer | -7/Zion | Free Imp. Actuator Array | -7/Zion | Archive Transmission Jammer | -7/Zion | Archive Med. Treads | -7/Zion | Archive Fission Core | -7/Zion | Archive Imp. Cooling System | -7/Zion | Archive Chainsword | -7/Zion | Archive Adv. Terrain Scanner | -7/Zion | Archive Armor Integrity Analyzer | -7/Zion | Archive Enh. Gauss Cannon | -7/Zion | Archive Adv. System Shield | -7/Zion | Archive Imp. Salvage Targeting Computer | -7/Zion | Archive Imp. Trap Scanner | -7/Zion | Archive Remote Datajack | -7/Zion | Archive HERF Cannon | -7/Zion | Archive Adv. Hacking Suite | -6/Factory | Hacked Adv. Sensor Array | -6/Factory | Hacked Nuclear Pulse Array | -6/Factory | Hacked Adv. Terrain Scan Processor | -6/Factory | Hacked Combat Drone Bay | -6/Data Miner | Free Lgt. Regenerative Plating | -6/Data Miner | Free Enh. Armored Leg | -6/Data Miner | Free Imp. Matter Compressor | -6/Data Miner | Free Thunder Hammer | -6/Data Miner | Free Adv. Medium Treads | -6/Data Miner | Free Imp. Force Field | -6/Data Miner | Free Hardcell Cannon | -6/Data Miner | Free Arm. Medium Treads | -6/Data Miner | Free Matter Neutralizer | -6/Data Miner | Free Arm. Huge Wheel | -5/Factory | Extracted Centrium Wheel | -5/Factory | Hacked Lrn. Sensor Array | -5/Factory | Hacked Exp. Targeting Computer | -5/Factory | Scanalyzed Imp. Transmission Jammer | -5/Factory | Scanalyzed Field Propulsion Array | -5/Factory | Scanalyzed Q-thruster | -5/Hub_04(d) | Hacked Exp. EM Disruption Field | -4/Factory | Hacked Exp. System Shield | -4/Factory | Hacked Exp. Shield Generator | -4/Factory | Hacked Exp. Utility Shielding | -4/Factory | Hacked Exp. Hacking Suite | -4/Factory | Hacked Exp. Melee Analysis Suite | -4/Factory | Hacked Exp. Signal Interpreter | -4/Factory | Scanalyzed Cmb. Antigrav System | -4/Factory | Hacked Cmb. Linear Gravjet | -4/Factory | Scanalyzed Com. HERF Cannon | -4/Factory | Scanalyzed Enh. Nova Cannon | -3/Research | Hacked System Purifier | -3/Research | Scanalyzed Nanoactuators | -3/Research | Hacked Adv. Heavy Siege Treads | -3/Testing | Hacked Exp. Biometal Heavy Treads | -3/Testing | Hacked Tri-rail Accelerator | -3/Testing | Archive Adv. Phase Shifter | -3/Testing | Hacked Cld. Q-thruster | -3/Testing | Hacked Impulse Thruster Array | -3/Testing | Hacked Nanosword | -3/Testing | Hacked Diametric Drive | -3/Testing | Archive Imp. KE Penetrator | -3/Testing | Archive Adv. Gravity Neutralizer | -3/Testing | Archive Plasma Lance | -3/Testing | Archive Tiamat Missile Launcher | -3/Testing | Archive Spectral Analyzer | -3/Testing | Archive Adv. Variable Charge Gun | -3/Testing | Archive Stealth Drone Bay | -3/Testing | Archive Beam Splitter | -2/Research | Hacked Exp. Thermal Shield | -2/Quarantine | Archive Exp. Gyrokinetic Inverter | -2/Quarantine | Archive Electron Diverter | -2/Quarantine | Archive Cld. Phase Cannon | -2/Quarantine | Archive Exp. Thermal Defense Suite | -2/Quarantine | Archive Exp. Actuator Array | -1/Access | Hacked Robot Schematics ------------------ K-01 Serf | -7/Zion | Archive B-48 Gladiator | -7/Zion | Archive Y-45 Defender | -7/Zion | Archive Y-64 Sentinel | -6/Data Miner | Free S-27 Virus | -6/Data Miner | Free P-70 Sage | -6/Data Miner | Free E-15 Imp | -6/Data Miner | Free O-32 Director | -6/Data Miner | Free H-77 Assassin | -6/Data Miner | Free G-50 Soldier | -6/Data Miner | Free B-60 Warrior | -4/Factory | Hacked B-74 Champion | -3/Research | Hacked M-36 Artificer | -3/Testing | Archive H-88 Terminator | -2/Research | Hacked G-67 Veteran | -2/Quarantine | Archive R-06 Scavenger | -2/Quarantine | Archive Fabricated ------------ Imp. Hacking Suite | x1 | -7/Factory | Authchip Imp. System Shield | x1 | -7/Factory Adv. System Shield | x1 | -6/Factory | Authchip Adv. Hacking Suite | x1 | -6/Factory | Authchip Adv. Sensor Array | x1 | -6/Factory Adv. Hacking Suite | x1 | -6/Factory Adv. Hacking Suite | x1 | -5/Factory | Authchip G-50 Soldier | x3 | -5/Factory | Preloaded Lrn. Sensor Array | x1 | -5/Factory | Authchip P-70 Sage | x2 | -5/Factory Exp. Hacking Suite | x1 | -4/Factory Exp. System Shield | x1 | -4/Factory Cmb. Antigrav System | x2 | -4/Factory Cmb. Antigrav System | x2 | -4/Factory Exp. System Shield | x1 | -4/Factory Exp. EM Disruption Field | x1 | -4/Factory | Authchip Exp. System Shield | x1 | -4/Factory | Authchip Lrn. Sensor Array | x1 | -4/Factory | Authchip Cmb. Linear Gravjet | x2 | -4/Factory Exp. Utility Shielding | x1 | -3/Research | Authchip Exp. Hacking Suite | x1 | -3/Research | Authchip Cmb. Linear Gravjet | x2 | -3/Testing | Authchip Nanosword | x1 | -3/Testing | Authchip Alien Tech Used ----------------- Phase Armor Sigix Broadsword Integrated Reactor Microwarp Drive Integrated Mediator Integrated Dissipator Dimensional Node Initializer Transdimensional Reconstructor LRC Storage Subatomic Replicator LRC Boosters Achievements -------------- None Challenges ------------ None Game ------ Seed AntimissileFieldDiverter Manual? 0 Play Time 08:50:21 Cumulative 316.1 hours Start 2022.06.06 @ 20:31:31 End 2022.06.07 @ 18:56:42 Sessions 3 Manual Loads 0 Difficulty Rogue Special Mode None Game No. 87 Rogue 87 Adventurer 0 Explorer 0 Win Type 0 Total 15 Types 13/0/2/0/0/0/0/0/0 Lore% 88 Gallery% 89 Achievement% 74 Wizard Run 0 Options --------- ASCII 0 Keyboard 0 Movement Numpad Keybinds 0 Fullscreen 1 Font 14/SmallcapsGlow Map View 84x54 Tactical HUD 1 Map Filters NONE Filters NONE Steam 1 RUN: 89460fee-192d-4939-97c3-be964e2d63bc